Workbook

Sheet Rekapitulace
B4: REKAPITULACE NÁKLADŮ
A10: Stavba: | B10: REKONSTRUKCE KLIMATIZACE OBJEKTU Q, VĚTEV c1
B11: MENDELOVA UNIVERZITA V BRNĚ
A13: Objekt: | B13: SO 03 - OBJEKT SPECIALIZOVANÝCH VÝUKOVÝCH PROSTOR
C18: Náklady v Kč (bez DPH)
A20: Profese: | B20: D1.1 - ARCHITEKTONICKO - STAVEBNÍ ŘEŠENÍ | C20: =SA102_RN!I21 -> 0
B22: D1.4.1 - VZDUCHOTECHNIKA A KLIMATIZACE | C22: =VZ102_RN!D16 -> 0
B24: D1.4.2 - ZDRAVOTECHNICKÉ INSTALACE | C24: =ZT102_Slepy_rozpocet!H21 -> 0
B26: D1.4.3 - ELEKTROINSTALACE | C26: =EL102_RN!D13 -> 0
B28: D1.4.4 - MĚŘENÍ A REGULACE | C28: ='SR102_RN '!D15 -> 0
B31: CELKEM NÁKLADY bez DPH | C31: =SUM(C19:C29) -> 0
B34: DPH 21% | C34: =CEILING(C31*0.21,1) -> 0
B36: CELKEM NÁKLADY včetně DPH | C36: =C31+C34 -> 0
A41: Datum:
A43: Vypracoval:

Sheet SA102_RN
A1: #RTSROZP# | B1: Soupis stavebních prací, dodávek a služeb
B2: Stavba: | D2: 2018074 | E2: MENDELOVA UNIVERZITA V BRNĚ - REKONSTRUKCE KLIMATIZACE OBJEKTU Q, VĚTEV c1
B3: Objekt: | D3: 03 | E3: OBJEKT SPECIALIZOVANÝCH VÝUKOVÝCH PROSTOR
A4: 2625 | B4: Rozpočet: | D4: 201807403 | E4: D1.1-ARCHITEKTONICKO-STAVEBNÍ ŘEŠENÍ
B5: Zadavatel | H5: IČO:
H6: DIČ:
B8: Projektant: | H8: IČO:
H9: DIČ:
B11: Zhotovitel: | H11: IČO:
H12: DIČ:
B14: Vypracoval:
B15: Rozpis ceny | I15: Celkem
A16: HSV | B16: HSV | I16: =SUMIF(F49:F60,A16,I49:I60)+SUMIF(F49:F60,"PSU",I49:I60) -> 0
A17: PSV | B17: PSV | I17: =SUMIF(F49:F60,A17,I49:I60) -> 0
A18: MON | B18: MON | I18: =SUMIF(F49:F60,A18,I49:I60) -> 0
A19: VN | B19: Vedlejší náklady | I19: =SUMIF(F49:F60,A19,I49:I60) -> 0
A20: ON | B20: Ostatní náklady | I20: =SUMIF(F49:F60,A20,I49:I60) -> 0
B21: Celkem | I21: =SUM(I16:J20) -> 0
B22: Rekapitulace daní
A23: =ZakladDPHSni*SazbaDPH1/100 -> 0 | B23: Základ pro sníženou DPH | E23: 15 | F23: % | G23: =ZakladDPHSniVypocet -> 0 | J23: =Mena -> CZK
A24: =(A23-INT(A23))*100 -> 0 | B24: Snížená DPH | E24: =SazbaDPH1 -> 15 | F24: % | G24: =IF(A24>50, ROUNDUP(A23, 0), ROUNDDOWN(A23, 0)) -> 0 | J24: CZK
A25: =ZakladDPHZakl*SazbaDPH2/100 -> 0 | B25: Základ pro základní DPH | E25: 21 | F25: % | G25: =ZakladDPHZaklVypocet -> 0 | J25: CZK
A26: =(A25-INT(A25))*100 -> 0 | B26: Základní DPH | E26: =SazbaDPH2 -> 21 | F26: % | G26: =IF(A26>50, ROUNDUP(A25, 0), ROUNDDOWN(A25, 0)) -> 0 | J26: CZK
A27: =ZakladDPHSni+DPHSni+ZakladDPHZakl+DPHZakl -> 0 | B27: Zaokrouhlení | G27: =CenaCelkem-(ZakladDPHSni+DPHSni+ZakladDPHZakl+DPHZakl) -> 0 | J27: CZK
B28: Cena celkem bez DPH | G28: =ZakladDPHSniVypocet+ZakladDPHZaklVypocet -> 0 | J28: CZK
A29: =(A27-INT(A27))*100 -> 0 | B29: Cena celkem s DPH | G29: =IF(A29>50, ROUNDUP(A27, 0), ROUNDDOWN(A27, 0)) -> 0 | J29: CZK
C32: v | F32: dne | H32: =TODAY() -> 2020-06-08
D35: Za zhotovitele | H35: Za objednatele
B37: Rekapitulace dílčích částí
A38: #CASTI>> | B38: Číslo | C38: Název | F38: =B23 -> Základ pro sníženou DPH | G38: =B25 -> Základ pro základní DPH | H38: DPH celkem | I38: Cena celkem | J38: %
A39: 1 | B39: Stavba | F39: =SA102_Slepy_rozpocet!AE290 -> 0 | G39: =SA102_Slepy_rozpocet!AF290 -> 0 | H39: =(F39*SazbaDPH1/100)+(G39*SazbaDPH2/100) -> 0 | I39: =F39+G39+H39 -> 0 | J39: =IF(CenaCelkemVypocet=0,"",I39/CenaCelkemVypocet*100) -> 
A40: 2 | B40: 03 | C40: OBJEKT SPECIALIZOVANÝCH VÝUKOVÝCH PROSTOR | F40: =SA102_Slepy_rozpocet!AE290 -> 0 | G40: =SA102_Slepy_rozpocet!AF290 -> 0 | H40: =(F40*SazbaDPH1/100)+(G40*SazbaDPH2/100) -> 0 | I40: =F40+G40+H40 -> 0 | J40: =IF(CenaCelkemVypocet=0,"",I40/CenaCelkemVypocet*100) -> 
A41: 3 | B41: 201807403 | C41: D1.1-ARCHITEKTONICKO-STAVEBNÍ ŘEŠENÍ | F41: =SA102_Slepy_rozpocet!AE290 -> 0 | G41: =SA102_Slepy_rozpocet!AF290 -> 0 | H41: =(F41*SazbaDPH1/100)+(G41*SazbaDPH2/100) -> 0 | I41: =F41+G41+H41 -> 0 | J41: =IF(CenaCelkemVypocet=0,"",I41/CenaCelkemVypocet*100) -> 
B42: Celkem za stavbu | F42: =SUMIF(A39:A41,"=1",F39:F41) -> 0 | G42: =SUMIF(A39:A41,"=1",G39:G41) -> 0 | H42: =SUMIF(A39:A41,"=1",H39:H41) -> 0 | I42: =SUMIF(A39:A41,"=1",I39:I41) -> 0 | J42: =SUMIF(A39:A41,"=1",J39:J41) -> 0
B46: Rekapitulace dílů
B48: Číslo | C48: Název | F48: Typ dílu | I48: Celkem | J48: %
B49: 3 | C49: Svislé a kompletní konstrukce | F49: HSV | I49: =SA102_Slepy_rozpocet!G8 -> 0 | J49: =IF(I61=0,"",I49/I61*100) -> 
B50: 61 | C50: Úpravy povrchů vnitřní | F50: HSV | I50: =SA102_Slepy_rozpocet!G63 -> 0 | J50: =IF(I61=0,"",I50/I61*100) -> 
B51: 62 | C51: Úpravy povrchů vnější | F51: HSV | I51: =SA102_Slepy_rozpocet!G88 -> 0 | J51: =IF(I61=0,"",I51/I61*100) -> 
B52: 64 | C52: Výplně otvorů | F52: HSV | I52: =SA102_Slepy_rozpocet!G93 -> 0 | J52: =IF(I61=0,"",I52/I61*100) -> 
B53: 94 | C53: Lešení a stavební výtahy | F53: HSV | I53: =SA102_Slepy_rozpocet!G99 -> 0 | J53: =IF(I61=0,"",I53/I61*100) -> 
B54: 95 | C54: Dokončovací konstrukce na pozemních stavbách | F54: HSV | I54: =SA102_Slepy_rozpocet!G121 -> 0 | J54: =IF(I61=0,"",I54/I61*100) -> 
B55: 96 | C55: Bourání konstrukcí | F55: HSV | I55: =SA102_Slepy_rozpocet!G144 -> 0 | J55: =IF(I61=0,"",I55/I61*100) -> 
B56: 99 | C56: Staveništní přesun hmot | F56: HSV | I56: =SA102_Slepy_rozpocet!G199 -> 0 | J56: =IF(I61=0,"",I56/I61*100) -> 
B57: 767 | C57: Konstrukce zámečnické | F57: PSV | I57: =SA102_Slepy_rozpocet!G203 -> 0 | J57: =IF(I61=0,"",I57/I61*100) -> 
B58: 784 | C58: Malby | F58: PSV | I58: =SA102_Slepy_rozpocet!G245 -> 0 | J58: =IF(I61=0,"",I58/I61*100) -> 
B59: D96 | C59: Přesuny suti a vybouraných hmot | F59: PSU | I59: =SA102_Slepy_rozpocet!G260 -> 0 | J59: =IF(I61=0,"",I59/I61*100) -> 
B60: VN | C60: Vedlejší náklady | F60: VN | I60: =SA102_Slepy_rozpocet!G276 -> 0 | J60: =IF(I61=0,"",I60/I61*100) -> 
B61: Cena celkem | I61: =SUM(I49:I60) -> 0 | J61: =SUM(J49:J60) -> 0

Sheet SA102_Slepy_rozpocet
A1: Položkový soupis prací a dodávek | AG1: #TypZaznamu#
A2: S: | B2: 2018074 | C2: MENDELOVA UNIVERZITA V BRNĚ - REKONSTRUKCE KLIMATIZACE OBJEKTU Q, VĚTEV c1 | AG2: STA
A3: O: | B3: 03 | C3: OBJEKT SPECIALIZOVANÝCH VÝUKOVÝCH PROSTOR | AC3: STA | AG3: OBJ
A4: R: | B4: 201807403 | C4: D1.1-ARCHITEKTONICKO-STAVEBNÍ ŘEŠENÍ | AG4: ROZ
A6: P.č. | B6: Číslo položky | C6: Název položky | D6: MJ | E6: množství | F6: cena / MJ | G6: Celkem | H6: Dodávka | I6: Dodávka celk. | J6: Montáž | K6: Montáž celk. | L6: DPH | M6: cena s DPH | N6: hmotnost / MJ | O6: hmotnost celk.(t) | P6: dem. hmotnost / MJ | Q6: dem. hmotnost celk.(t) | R6: Ceník | S6: Cen. soustava / platnost | T6: Cenová úroveň | U6: Nhod / MJ | V6: Nhod celk. | W6: Dodavatel
A8: Díl: | B8: 3 | C8: Svislé a kompletní konstrukce | G8: =SUMIF(AG9:AG62,"<>NOR",G9:G62) -> 0 | I8: =SUM(I9:I62) -> 0 | K8: =SUM(K9:K62) -> 0 | M8: =SUM(M9:M62) -> 0 | O8: =SUM(O9:O62) -> 4.14 | Q8: =SUM(Q9:Q62) -> 0 | V8: =SUM(V9:V62) -> 341.73 | AG8: DIL
A9: 1 | B9: 310235241RT2 | C9: Zazdívka otvorů o ploše do 0,0225 m2 ve zdivu nadzákladovém cihlami pálenými o tloušťce zdi do 300 mm | D9: kus | E9: 2 | G9: =ROUND(E9*F9,2) -> 0 | I9: =ROUND(E9*H9,2) -> 0 | K9: =ROUND(E9*J9,2) -> 0 | L9: 21 | M9: =G9*(1+L9/100) -> 0 | N9: 0.01237 | O9: =ROUND(E9*N9,2) -> 0.02 | P9: 0 | Q9: =ROUND(E9*P9,2) -> 0 | R9: 801-4 | S9: RTS 18/ II | T9: RTS 18/ II | U9: 0.16069 | V9: =ROUND(E9*U9,2) -> 0.32 | AG9: POL1_
C10: včetně pomocného pracovního lešení | AG10: SPI
C11: střecha - odkaz I 150x150-200 mm, 2 ks : 2 | E11: 2 | AG11: VV | AH11: 0
AG12: SPU
A13: 2 | B13: 317941121R00 | C13: Osazení ocelových válcovaných nosníků na zdivu bez dodávky materiálu, výšky do 120 mm | D13: t | E13: 0.01789 | G13: =ROUND(E13*F13,2) -> 0 | I13: =ROUND(E13*H13,2) -> 0 | K13: =ROUND(E13*J13,2) -> 0 | L13: 21 | M13: =G13*(1+L13/100) -> 0 | N13: 0.01954 | O13: =ROUND(E13*N13,2) -> 0 | P13: 0 | Q13: =ROUND(E13*P13,2) -> 0 | R13: 801-1 | S13: RTS 18/ II | T13: RTS 18/ II | U13: 18.175 | V13: =ROUND(E13*U13,2) -> 0.33 | AG13: POL1_
C14: profilu I, nebo IE, nebo U, nebo UE, nebo L | AG14: SPI
C15: 1.NP odkaz d) m.č. 1.38 L70/6-0,7m : 6,39*0,70*2*0,001*2 | E15: 0.01789 | AG15: VV | AH15: 0
AG16: SPU
A17: 3 | B17: 342264051RT1 | C17: Podhledy na kovové konstrukci opláštěné deskami sádrokartonovými nosná konstrukce z profilů CD s přímým uchycením 1x deska, tloušťky 12,5 mm, standard | D17: m2 | E17: 337.36878 | G17: =ROUND(E17*F17,2) -> 0 | I17: =ROUND(E17*H17,2) -> 0 | K17: =ROUND(E17*J17,2) -> 0 | L17: 21 | M17: =G17*(1+L17/100) -> 0 | N17: 0.01215 | O17: =ROUND(E17*N17,2) -> 4.1 | P17: 0 | Q17: =ROUND(E17*P17,2) -> 0 | R17: 801-1 | S17: RTS 18/ II | T17: RTS 18/ II | U17: 1.011 | V17: =ROUND(E17*U17,2) -> 341.08 | AG17: POL1_
C18: 1.NP odkaz g) : | AG18: VV | AH18: 0
C19: 1.62 : 0,60*6,25 | E19: 3.75 | AG19: VV | AH19: 0
C20: 1.NP odkaz k) : | AG20: VV | AH20: 0
C21: 1.38 : 16,11 | E21: 16.11 | AG21: VV | AH21: 0
C22: 1.NP odkaz i) : | AG22: VV | AH22: 0
C23: 1.20 : 7,71*4,92*2 | E23: 75.8664 | AG23: VV | AH23: 0
C24: 6,35*5,51+(4,25+4,675)*0,5*5,51+6,35*5,51*3 | E24: 164.54238 | AG24: VV | AH24: 0
C25: 7,71*5,0*2 | E25: 77.1 | AG25: VV | AH25: 0
C26: Mezisoučet | E26: 337.36878 | AG26: VV | AH26: 1
AG27: SPU
A28: 4 | B28: 34226PC01 | C28: Provedení RD1 - revizních dvířek z plného podhledu s vyloučením kovového rámu | D28: m2 | E28: 4 | G28: =ROUND(E28*F28,2) -> 0 | I28: =ROUND(E28*H28,2) -> 0 | K28: =ROUND(E28*J28,2) -> 0 | L28: 21 | M28: =G28*(1+L28/100) -> 0 | N28: 0 | O28: =ROUND(E28*N28,2) -> 0 | P28: 0 | Q28: =ROUND(E28*P28,2) -> 0 | S28: Vlastní | T28: Indiv | U28: 0 | V28: =ROUND(E28*U28,2) -> 0 | AG28: POL1_
C29: REVIZNÍ DVÍŘKA | AG29: POP
C30: RD1 - 1100x650 mm - 4ks | AG30: POP
C31: RD2 - 600x400 mm - 8 ks | AG31: POP
C32: RD3 - 300x300 mm - 11 ks | AG32: POP
C33: RD4 - 650x610 mm - 1 ks | AG33: POP
C34: RD1 1100x650 mm : 4 | E34: 4 | AG34: VV | AH34: 0
AG35: SPU
A36: 5 | B36: 34226PC02 | C36: Provedení RD2 - revizních dvířek z plného podhledu s vyloučením kovového rámu | D36: m2 | E36: 12 | G36: =ROUND(E36*F36,2) -> 0 | I36: =ROUND(E36*H36,2) -> 0 | K36: =ROUND(E36*J36,2) -> 0 | L36: 21 | M36: =G36*(1+L36/100) -> 0 | N36: 0 | O36: =ROUND(E36*N36,2) -> 0 | P36: 0 | Q36: =ROUND(E36*P36,2) -> 0 | S36: Vlastní | T36: Indiv | U36: 0 | V36: =ROUND(E36*U36,2) -> 0 | AG36: POL1_
C37: REVIZNÍ DVÍŘKA | AG37: POP
C38: RD1 - 1100x650 mm - 4ks | AG38: POP
C39: RD2 - 600x400 mm - 8 ks | AG39: POP
C40: RD3 - 300x300 mm - 11 ks | AG40: POP
C41: RD4 - 650x610 mm - 1 ks | AG41: POP
C42: RD2 600x400 mm : 12 | E42: 12 | AG42: VV | AH42: 0
AG43: SPU
A44: 6 | B44: 34226PC03 | C44: Provedení RD3 - revizních dvířek z plného podhledu s vyloučením kovového rámu | D44: m2 | E44: 7 | G44: =ROUND(E44*F44,2) -> 0 | I44: =ROUND(E44*H44,2) -> 0 | K44: =ROUND(E44*J44,2) -> 0 | L44: 21 | M44: =G44*(1+L44/100) -> 0 | N44: 0 | O44: =ROUND(E44*N44,2) -> 0 | P44: 0 | Q44: =ROUND(E44*P44,2) -> 0 | S44: Vlastní | T44: Indiv | U44: 0 | V44: =ROUND(E44*U44,2) -> 0 | AG44: POL1_
C45: REVIZNÍ DVÍŘKA | AG45: POP
C46: RD1 - 1100x650 mm - 4ks | AG46: POP
C47: RD2 - 600x400 mm - 8 ks | AG47: POP
C48: RD3 - 300x300 mm - 11 ks | AG48: POP
C49: RD4 - 650x610 mm - 1 ks | AG49: POP
C50: RD3 300x300 mm : 7 | E50: 7 | AG50: VV | AH50: 0
AG51: SPU
A52: 7 | B52: 34226PC04 | C52: Provedení RD4 - revizních dvířek z plného podhledu s vyloučením kovového rámu | D52: m2 | E52: 1 | G52: =ROUND(E52*F52,2) -> 0 | I52: =ROUND(E52*H52,2) -> 0 | K52: =ROUND(E52*J52,2) -> 0 | L52: 21 | M52: =G52*(1+L52/100) -> 0 | N52: 0 | O52: =ROUND(E52*N52,2) -> 0 | P52: 0 | Q52: =ROUND(E52*P52,2) -> 0 | S52: Vlastní | T52: Indiv | U52: 0 | V52: =ROUND(E52*U52,2) -> 0 | AG52: POL1_
C53: REVIZNÍ DVÍŘKA | AG53: POP
C54: RD1 - 1100x650 mm - 4ks | AG54: POP
C55: RD2 - 600x400 mm - 8 ks | AG55: POP
C56: RD3 - 300x300 mm - 11 ks | AG56: POP
C57: RD4 - 650x610 mm - 1 ks | AG57: POP
C58: RD4 650x610 mm : 1 | E58: 1 | AG58: VV | AH58: 0
AG59: SPU
A60: 8 | B60: 13331762R | C60: tyč ocelová L (úhelník) válcovaná za tepla 11375 (S 235JR); rovnoramenná; tl = 6,00 mm; a = 70,0 mm; b = 70,0 mm | D60: t | E60: 0.01932 | G60: =ROUND(E60*F60,2) -> 0 | I60: =ROUND(E60*H60,2) -> 0 | K60: =ROUND(E60*J60,2) -> 0 | L60: 21 | M60: =G60*(1+L60/100) -> 0 | N60: 1 | O60: =ROUND(E60*N60,2) -> 0.02 | P60: 0 | Q60: =ROUND(E60*P60,2) -> 0 | R60: SPCM | S60: RTS 18/ II | T60: RTS 18/ II | U60: 0 | V60: =ROUND(E60*U60,2) -> 0 | AG60: POL3_
C61: 1.NP odkaz d) m.č. 1.38 L70/6-0,7m : 6,39*0,70*2*0,00108*2 | E61: 0.01932 | AG61: VV | AH61: 0
AG62: SPU
A63: Díl: | B63: 61 | C63: Úpravy povrchů vnitřní | G63: =SUMIF(AG64:AG87,"<>NOR",G64:G87) -> 0 | I63: =SUM(I64:I87) -> 0 | K63: =SUM(K64:K87) -> 0 | M63: =SUM(M64:M87) -> 0 | O63: =SUM(O64:O87) -> 0.27 | Q63: =SUM(Q64:Q87) -> 0 | V63: =SUM(V64:V87) -> 10.87 | AG63: DIL
A64: 9 | B64: 612401191RT2 | C64: Omítky malých ploch vnitřních stěn do 0,09 m2, vápennou štukovou omítkou | D64: kus | E64: 19 | G64: =ROUND(E64*F64,2) -> 0 | I64: =ROUND(E64*H64,2) -> 0 | K64: =ROUND(E64*J64,2) -> 0 | L64: 21 | M64: =G64*(1+L64/100) -> 0 | N64: 0.0032 | O64: =ROUND(E64*N64,2) -> 0.06 | P64: 0 | Q64: =ROUND(E64*P64,2) -> 0 | R64: 801-4 | S64: RTS 18/ II | T64: RTS 18/ II | U64: 0.22498 | V64: =ROUND(E64*U64,2) -> 4.27 | AG64: POL1_
C65: jakoukoliv maltou, z pomocného pracovního lešení o výšce podlahy do 1900 mm a pro zatížení do 1,5 kPa, | AG65: SPI | BA65: =C65 -> jakoukoliv maltou, z pomocného pracovního lešení o výšce podlahy do 1900 mm a pro zatížení do 1,5 kPa,
C66: střecha - odkaz I 150x150-200 mm, 2 ks : 2*2 | E66: 4 | AG66: VV | AH66: 0
C67: Mezisoučet | E67: 4 | AG67: VV | AH67: 1
C68: 1.PP - odkaz a) : 2 | E68: 2 | AG68: VV | AH68: 0
C69: 1.NP - odkaz a) : 5*2 | E69: 10 | AG69: VV | AH69: 0
C70: Mezisoučet | E70: 12 | AG70: VV | AH70: 1
C71: 1.PP - odkaz c) : 1 | E71: 1 | AG71: VV | AH71: 0
C72: 1.NP- odkaz c) : 2 | E72: 2 | AG72: VV | AH72: 0
C73: Mezisoučet | E73: 3 | AG73: VV | AH73: 1
AG74: SPU
A75: 10 | B75: 612401291RT2 | C75: Omítky malých ploch vnitřních stěn přes 0,09 do 0,25 m2, vápennou štukovou omítkou | D75: kus | E75: 8 | G75: =ROUND(E75*F75,2) -> 0 | I75: =ROUND(E75*H75,2) -> 0 | K75: =ROUND(E75*J75,2) -> 0 | L75: 21 | M75: =G75*(1+L75/100) -> 0 | N75: 0.00867 | O75: =ROUND(E75*N75,2) -> 0.07 | P75: 0 | Q75: =ROUND(E75*P75,2) -> 0 | R75: 801-4 | S75: RTS 18/ II | T75: RTS 18/ II | U75: 0.35974 | V75: =ROUND(E75*U75,2) -> 2.88 | AG75: POL1_
C76: jakoukoliv maltou, z pomocného pracovního lešení o výšce podlahy do 1900 mm a pro zatížení do 1,5 kPa, | AG76: SPI | BA76: =C76 -> jakoukoliv maltou, z pomocného pracovního lešení o výšce podlahy do 1900 mm a pro zatížení do 1,5 kPa,
C77: odkaz d) : 4*2 | E77: 8 | AG77: VV | AH77: 0
AG78: SPU
A79: 11 | B79: 612401391RT2 | C79: Omítky malých ploch vnitřních stěn přes 0,25 do 1 m2, vápennou štukovou omítkou | D79: kus | E79: 4 | G79: =ROUND(E79*F79,2) -> 0 | I79: =ROUND(E79*H79,2) -> 0 | K79: =ROUND(E79*J79,2) -> 0 | L79: 21 | M79: =G79*(1+L79/100) -> 0 | N79: 0.03562 | O79: =ROUND(E79*N79,2) -> 0.14 | P79: 0 | Q79: =ROUND(E79*P79,2) -> 0 | R79: 801-4 | S79: RTS 18/ II | T79: RTS 18/ II | U79: 0.88293 | V79: =ROUND(E79*U79,2) -> 3.53 | AG79: POL1_
C80: jakoukoliv maltou, z pomocného pracovního lešení o výšce podlahy do 1900 mm a pro zatížení do 1,5 kPa, | AG80: SPI | BA80: =C80 -> jakoukoliv maltou, z pomocného pracovního lešení o výšce podlahy do 1900 mm a pro zatížení do 1,5 kPa,
C81: 1.NP odkaz e) : 2 | E81: 2 | AG81: VV | AH81: 0
C82: odkaz e1) : 2 | E82: 2 | AG82: VV | AH82: 0
AG83: SPU
A84: 12 | B84: 612481113R00 | C84: Potažení vnitřních stěn pletivem sklotextilním , s vypnutím | D84: m2 | E84: 0.81 | G84: =ROUND(E84*F84,2) -> 0 | I84: =ROUND(E84*H84,2) -> 0 | K84: =ROUND(E84*J84,2) -> 0 | L84: 21 | M84: =G84*(1+L84/100) -> 0 | N84: 0.00034 | O84: =ROUND(E84*N84,2) -> 0 | P84: 0 | Q84: =ROUND(E84*P84,2) -> 0 | R84: 801-1 | S84: RTS 18/ II | T84: RTS 18/ II | U84: 0.24 | V84: =ROUND(E84*U84,2) -> 0.19 | AG84: POL1_
C85: v ploše nebo pruzích na plném podkladu nebo na podkladu s dutinami (pod omítku) | AG85: SPI
C86: odkaz d) : (0,90*0,15*3)*2 | E86: 0.81 | AG86: VV | AH86: 0
AG87: SPU
A88: Díl: | B88: 62 | C88: Úpravy povrchů vnější | G88: =SUMIF(AG89:AG92,"<>NOR",G89:G92) -> 0 | I88: =SUM(I89:I92) -> 0 | K88: =SUM(K89:K92) -> 0 | M88: =SUM(M89:M92) -> 0 | O88: =SUM(O89:O92) -> 0.01 | Q88: =SUM(Q89:Q92) -> 0 | V88: =SUM(V89:V92) -> 0.39 | AG88: DIL
A89: 13 | B89: 622477128R00 | C89: Oprava vnějších hladkých omítek stěn složitost fasády I.-II., množství opravované plochy 66 až 80 % | D89: m2 | E89: 0.5 | G89: =ROUND(E89*F89,2) -> 0 | I89: =ROUND(E89*H89,2) -> 0 | K89: =ROUND(E89*J89,2) -> 0 | L89: 21 | M89: =G89*(1+L89/100) -> 0 | N89: 0.01932 | O89: =ROUND(E89*N89,2) -> 0.01 | P89: 0 | Q89: =ROUND(E89*P89,2) -> 0 | R89: 801-4 | S89: RTS 18/ II | T89: RTS 18/ II | U89: 0.78633 | V89: =ROUND(E89*U89,2) -> 0.39 | AG89: POL1_
C90: postřik vodou a jednovrstvé doplnění omítky | AG90: SPI
C91: střecha - odkaz I 150x150-200 mm, 2 ks : 0,5*0,5*2 | E91: 0.5 | AG91: VV | AH91: 0
AG92: SPU
A93: Díl: | B93: 64 | C93: Výplně otvorů | G93: =SUMIF(AG94:AG98,"<>NOR",G94:G98) -> 0 | I93: =SUM(I94:I98) -> 0 | K93: =SUM(K94:K98) -> 0 | M93: =SUM(M94:M98) -> 0 | O93: =SUM(O94:O98) -> 0.05 | Q93: =SUM(Q94:Q98) -> 0 | V93: =SUM(V94:V98) -> 0.9 | AG93: DIL
A94: 14 | B94: 641941111R00 | C94: Osazení rámů okenních ocelových o ploše do 1 m2 | D94: kus | E94: 2 | G94: =ROUND(E94*F94,2) -> 0 | I94: =ROUND(E94*H94,2) -> 0 | K94: =ROUND(E94*J94,2) -> 0 | L94: 21 | M94: =G94*(1+L94/100) -> 0 | N94: 0.02526 | O94: =ROUND(E94*N94,2) -> 0.05 | P94: 0 | Q94: =ROUND(E94*P94,2) -> 0 | R94: 801-1 | S94: RTS 18/ II | T94: RTS 18/ II | U94: 0.45 | V94: =ROUND(E94*U94,2) -> 0.9 | AG94: POL1_
C95: na jakoukoliv cementovou maltu. Včetně kotvení do zdiva. | AG95: SPI
C96: 1.NP odkaz e) : 1 | E96: 1 | AG96: VV | AH96: 0
C97: odkaz e1) : 1 | E97: 1 | AG97: VV | AH97: 0
AG98: SPU
A99: Díl: | B99: 94 | C99: Lešení a stavební výtahy | G99: =SUMIF(AG100:AG120,"<>NOR",G100:G120) -> 0 | I99: =SUM(I100:I120) -> 0 | K99: =SUM(K100:K120) -> 0 | M99: =SUM(M100:M120) -> 0 | O99: =SUM(O100:O120) -> 0.84 | Q99: =SUM(Q100:Q120) -> 0 | V99: =SUM(V100:V120) -> 122.71 | AG99: DIL
A100: 15 | B100: 941955001R00 | C100: Lešení lehké pracovní pomocné pomocné, o výšce lešeňové podlahy do 1,2 m | D100: m2 | E100: 693.261 | G100: =ROUND(E100*F100,2) -> 0 | I100: =ROUND(E100*H100,2) -> 0 | K100: =ROUND(E100*J100,2) -> 0 | L100: 21 | M100: =G100*(1+L100/100) -> 0 | N100: 0.00121 | O100: =ROUND(E100*N100,2) -> 0.84 | P100: 0 | Q100: =ROUND(E100*P100,2) -> 0 | R100: 800-3 | S100: RTS 18/ II | T100: RTS 18/ II | U100: 0.177 | V100: =ROUND(E100*U100,2) -> 122.71 | AG100: POL1_
C101: 1.NP odkaz g) : | AG101: VV | AH101: 0
C102: 1.62 : 1,20*6,25 | E102: 7.5 | AG102: VV | AH102: 0
C103: 1.NP odkaz k) : | AG103: VV | AH103: 0
C104: 1.38 : 16,11 | E104: 16.11 | AG104: VV | AH104: 0
C105: 1.NP odkaz i) : | AG105: VV | AH105: 0
C106: 1.20 : 4,92*(16,9+1,20*2) | E106: 94.956 | AG106: VV | AH106: 0
C107: (7,35+1,2)*(36,5+1,2*2) | E107: 332.595 | AG107: VV | AH107: 0
C108: 5,0*(16,9+1,20*2) | E108: 96.5 | AG108: VV | AH108: 0
C109: Mezisoučet | E109: 547.661 | AG109: VV | AH109: 1
C110: pro prosvětlovací kazety 1.78 : 22,0*1,20 | E110: 26.4 | AG110: VV | AH110: 0
C111: kazetový strop : | AG111: VV | AH111: 0
C112: 1.PP - odkaz f) : | AG112: VV | AH112: 0
C113: 01.47 : 1,90*14,1 | E113: 26.79 | AG113: VV | AH113: 0
C114: 01.71, 01.72, 01.47 : 48,50*1,50+2,40*0,9 | E114: 74.91 | AG114: VV | AH114: 0
C115: 01.81 : 5,0*1,50 | E115: 7.5 | AG115: VV | AH115: 0
C116: Mezisoučet | E116: 135.6 | AG116: VV | AH116: 1
C117: 1.NP - odkaz f) : | AG117: VV | AH117: 0
C118: 1.77 : 5,0*2,0 | E118: 10 | AG118: VV | AH118: 0
C119: Mezisoučet | E119: 10 | AG119: VV | AH119: 1
AG120: SPU
A121: Díl: | B121: 95 | C121: Dokončovací konstrukce na pozemních stavbách | G121: =SUMIF(AG122:AG143,"<>NOR",G122:G143) -> 0 | I121: =SUM(I122:I143) -> 0 | K121: =SUM(K122:K143) -> 0 | M121: =SUM(M122:M143) -> 0 | O121: =SUM(O122:O143) -> 0.03 | Q121: =SUM(Q122:Q143) -> 0 | V121: =SUM(V122:V143) -> 213.52 | AG121: DIL
A122: 16 | B122: 952901111R00 | C122: Vyčištění budov a ostatních objektů budov bytové nebo občanské výstavby - zametení a umytí podlah, dlažeb, obkladů, schodů v místnostech, chodbách a schodištích, vyčištění a umytí oken, dveří s rámy, zárubněmi, umytí a vyčištění jiných zasklených a natíraných ploch a zařizovacích předmětů před předáním do užívání světlá výška podlaží do 4 m | D122: m2 | E122: 693.261 | G122: =ROUND(E122*F122,2) -> 0 | I122: =ROUND(E122*H122,2) -> 0 | K122: =ROUND(E122*J122,2) -> 0 | L122: 21 | M122: =G122*(1+L122/100) -> 0 | N122: 4e-05 | O122: =ROUND(E122*N122,2) -> 0.03 | P122: 0 | Q122: =ROUND(E122*P122,2) -> 0 | R122: 801-1 | S122: RTS 18/ II | T122: RTS 18/ II | U122: 0.308 | V122: =ROUND(E122*U122,2) -> 213.52 | AG122: POL1_
C123: po skončení prací před předáním do užívání : | AG123: VV | AH123: 0
C124: 1.NP odkaz g) : | AG124: VV | AH124: 0
C125: 1.62 : 1,20*6,25 | E125: 7.5 | AG125: VV | AH125: 0
C126: 1.NP odkaz k) : | AG126: VV | AH126: 0
C127: 1.38 : 16,11 | E127: 16.11 | AG127: VV | AH127: 0
C128: 1.NP odkaz i) : | AG128: VV | AH128: 0
C129: 1.20 : 4,92*(16,9+1,20*2) | E129: 94.956 | AG129: VV | AH129: 0
C130: (7,35+1,2)*(36,5+1,2*2) | E130: 332.595 | AG130: VV | AH130: 0
C131: 5,0*(16,9+1,20*2) | E131: 96.5 | AG131: VV | AH131: 0
C132: Mezisoučet | E132: 547.661 | AG132: VV | AH132: 1
C133: pro prosvětlovací kazety 1.78 : 22,0*1,20 | E133: 26.4 | AG133: VV | AH133: 0
C134: kazetový strop : | AG134: VV | AH134: 0
C135: 1.PP - odkaz f) : | AG135: VV | AH135: 0
C136: 01.47 : 1,90*14,1 | E136: 26.79 | AG136: VV | AH136: 0
C137: 01.71, 01.72, 01.47 : 48,50*1,50+2,40*0,9 | E137: 74.91 | AG137: VV | AH137: 0
C138: 01.81 : 5,0*1,50 | E138: 7.5 | AG138: VV | AH138: 0
C139: Mezisoučet | E139: 135.6 | AG139: VV | AH139: 1
C140: 1.NP - odkaz f) : | AG140: VV | AH140: 0
C141: 1.77 : 5,0*2,0 | E141: 10 | AG141: VV | AH141: 0
C142: Mezisoučet | E142: 10 | AG142: VV | AH142: 1
AG143: SPU
A144: Díl: | B144: 96 | C144: Bourání konstrukcí | G144: =SUMIF(AG145:AG198,"<>NOR",G145:G198) -> 0 | I144: =SUM(I145:I198) -> 0 | K144: =SUM(K145:K198) -> 0 | M144: =SUM(M145:M198) -> 0 | O144: =SUM(O145:O198) -> 0.11 | Q144: =SUM(Q145:Q198) -> 4.3 | V144: =SUM(V145:V198) -> 135.04 | AG144: DIL
A145: 17 | B145: 963016111R00 | C145: Demontáž sádrokartonových a sádrovláknitých podhledů z desek bez minerální izolace, na jednoduché ocelové konstrukci, 1x opláštěné tl. 12,5 mm | D145: m2 | E145: 337.36878 | G145: =ROUND(E145*F145,2) -> 0 | I145: =ROUND(E145*H145,2) -> 0 | K145: =ROUND(E145*J145,2) -> 0 | L145: 21 | M145: =G145*(1+L145/100) -> 0 | N145: 0.00033 | O145: =ROUND(E145*N145,2) -> 0.11 | P145: 0.01183 | Q145: =ROUND(E145*P145,2) -> 3.99 | R145: 801-3 | S145: RTS 18/ II | T145: RTS 18/ II | U145: 0.346 | V145: =ROUND(E145*U145,2) -> 116.73 | AG145: POL1_
C146: 1.NP odkaz g) : | AG146: VV | AH146: 0
C147: 1.62 : 0,60*6,25 | E147: 3.75 | AG147: VV | AH147: 0
C148: 1.NP odkaz k) : | AG148: VV | AH148: 0
C149: 1.38 : 16,11 | E149: 16.11 | AG149: VV | AH149: 0
C150: 1.NP odkaz i) : | AG150: VV | AH150: 0
C151: 1.20 : 7,71*4,92*2 | E151: 75.8664 | AG151: VV | AH151: 0
C152: 6,35*5,51+(4,25+4,675)*0,5*5,51+6,35*5,51*3 | E152: 164.54238 | AG152: VV | AH152: 0
C153: 7,71*5,0*2 | E153: 77.1 | AG153: VV | AH153: 0
C154: Mezisoučet | E154: 337.36878 | AG154: VV | AH154: 1
AG155: SPU
A156: 18 | B156: 967041112R00 | C156: Přisekání rovných ostění v betonu bez odstupu, po hrubém vybourání otvorů | D156: m2 | E156: 0.24 | G156: =ROUND(E156*F156,2) -> 0 | I156: =ROUND(E156*H156,2) -> 0 | K156: =ROUND(E156*J156,2) -> 0 | L156: 21 | M156: =G156*(1+L156/100) -> 0 | N156: 0 | O156: =ROUND(E156*N156,2) -> 0 | P156: 0.066 | Q156: =ROUND(E156*P156,2) -> 0.02 | R156: 801-3 | S156: RTS 18/ II | T156: RTS 18/ II | U156: 2.352 | V156: =ROUND(E156*U156,2) -> 0.56 | AG156: POL1_
C157: bez odstupu, po hrubém vybourání otvorů, | AG157: SPI
C158: 1.NP odkaz e) : 0,10*0,30*2 | E158: 0.06 | AG158: VV | AH158: 0
C159: odkaz e1) : 0,30*0,30*2 | E159: 0.18 | AG159: VV | AH159: 0
AG160: SPU
A161: 19 | B161: 968072244R00 | C161: Vybourání a vyjmutí kovových rámů a rolet rámů, včetně pomocného lešení o výšce podlahy do 1900 mm a pro zatížení do 1,5 kPa (150 kg/m2) okenních jednoduchých, plochy do 1 m2 | D161: m2 | E161: 0.63 | G161: =ROUND(E161*F161,2) -> 0 | I161: =ROUND(E161*H161,2) -> 0 | K161: =ROUND(E161*J161,2) -> 0 | L161: 21 | M161: =G161*(1+L161/100) -> 0 | N161: 0.00304 | O161: =ROUND(E161*N161,2) -> 0 | P161: 0.065 | Q161: =ROUND(E161*P161,2) -> 0.04 | R161: 801-3 | S161: RTS 18/ II | T161: RTS 18/ II | U161: 0.913 | V161: =ROUND(E161*U161,2) -> 0.58 | AG161: POL1_
C162: 1.NP odkaz e) : 1,40*0,30 | E162: 0.42 | AG162: VV | AH162: 0
C163: odkaz e1) : 0,70*0,30 | E163: 0.21 | AG163: VV | AH163: 0
AG164: SPU
A165: 20 | B165: 970031160R00 | C165: Jádrové vrtání, kruhové prostupy v cihelném zdivu jádrové vrtání, do D 160 mm | D165: m | E165: 1.725 | G165: =ROUND(E165*F165,2) -> 0 | I165: =ROUND(E165*H165,2) -> 0 | K165: =ROUND(E165*J165,2) -> 0 | L165: 21 | M165: =G165*(1+L165/100) -> 0 | N165: 0 | O165: =ROUND(E165*N165,2) -> 0 | P165: 0.03617 | Q165: =ROUND(E165*P165,2) -> 0.06 | R165: 801-3 | S165: RTS 18/ II | T165: RTS 18/ II | U165: 4 | V165: =ROUND(E165*U165,2) -> 6.9 | AG165: POL1_
C166: 1.PP - odkaz a) : 0,150 | E166: 0.15 | AG166: VV | AH166: 0
C167: 1.NP - odkaz a) : 0,150*2+0,150*2+0,150 | E167: 0.75 | AG167: VV | AH167: 0
C168: Mezisoučet | E168: 0.9 | AG168: VV | AH168: 1
C169: 1.PP - odkaz c) : 0,275 | E169: 0.275 | AG169: VV | AH169: 0
C170: 1.NP- odkaz c) : 0,275*2 | E170: 0.55 | AG170: VV | AH170: 0
AG171: SPU
A172: 21 | B172: 970033160R00 | C172: Jádrové vrtání, kruhové prostupy v cihelném zdivu příplatek za jádrové vrtání ve H nad 1,5 m , do D 160 mm | D172: m | E172: 1.725 | G172: =ROUND(E172*F172,2) -> 0 | I172: =ROUND(E172*H172,2) -> 0 | K172: =ROUND(E172*J172,2) -> 0 | L172: 21 | M172: =G172*(1+L172/100) -> 0 | N172: 0.00089 | O172: =ROUND(E172*N172,2) -> 0 | P172: 0 | Q172: =ROUND(E172*P172,2) -> 0 | R172: 801-3 | S172: RTS 18/ II | T172: RTS 18/ II | U172: 0.79 | V172: =ROUND(E172*U172,2) -> 1.36 | AG172: POL1_
C173: 1.PP - odkaz a) : 0,150 | E173: 0.15 | AG173: VV | AH173: 0
C174: 1.NP - odkaz a) : 0,150*2+0,150*2+0,150 | E174: 0.75 | AG174: VV | AH174: 0
C175: Mezisoučet | E175: 0.9 | AG175: VV | AH175: 1
C176: 1.PP - odkaz c) : 0,275 | E176: 0.275 | AG176: VV | AH176: 0
C177: 1.NP- odkaz c) : 0,275*2 | E177: 0.55 | AG177: VV | AH177: 0
AG178: SPU
A179: 22 | B179: 970034160R00 | C179: Jádrové vrtání, kruhové prostupy v cihelném zdivu příplatek za jádrové vrtání vodorovně ve stěně, do D 160 mm | D179: m | E179: 1.725 | G179: =ROUND(E179*F179,2) -> 0 | I179: =ROUND(E179*H179,2) -> 0 | K179: =ROUND(E179*J179,2) -> 0 | L179: 21 | M179: =G179*(1+L179/100) -> 0 | N179: 1e-05 | O179: =ROUND(E179*N179,2) -> 0 | P179: 0 | Q179: =ROUND(E179*P179,2) -> 0 | R179: 801-3 | S179: RTS 18/ II | T179: RTS 18/ II | U179: 1.269 | V179: =ROUND(E179*U179,2) -> 2.19 | AG179: POL1_
C180: 1.PP - odkaz a) : 0,150 | E180: 0.15 | AG180: VV | AH180: 0
C181: 1.NP - odkaz a) : 0,150*2+0,150*2+0,150 | E181: 0.75 | AG181: VV | AH181: 0
C182: Mezisoučet | E182: 0.9 | AG182: VV | AH182: 1
C183: 1.PP - odkaz c) : 0,275 | E183: 0.275 | AG183: VV | AH183: 0
C184: 1.NP- odkaz c) : 0,275*2 | E184: 0.55 | AG184: VV | AH184: 0
AG185: SPU
A186: 23 | B186: 970251100R00 | C186: Řezání železobetonu hloubka řezu 100 mm | D186: m | E186: 2.8 | G186: =ROUND(E186*F186,2) -> 0 | I186: =ROUND(E186*H186,2) -> 0 | K186: =ROUND(E186*J186,2) -> 0 | L186: 21 | M186: =G186*(1+L186/100) -> 0 | N186: 0 | O186: =ROUND(E186*N186,2) -> 0 | P186: 0.00046 | Q186: =ROUND(E186*P186,2) -> 0 | R186: 801-3 | S186: RTS 18/ II | T186: RTS 18/ II | U186: 1 | V186: =ROUND(E186*U186,2) -> 2.8 | AG186: POL1_
C187: 1.NP odkaz e) : (0,10*2+0,30)*2 | E187: 1 | AG187: VV | AH187: 0
C188: odkaz e1) : 0,30*3*2 | E188: 1.8 | AG188: VV | AH188: 0
AG189: SPU
A190: 24 | B190: 971052431R00 | C190: Vybourání a prorážení otvorů v železobetonových zdech a příčkách plochy do 0,25 m2, tloušťky do 150 mm | D190: kus | E190: 2 | G190: =ROUND(E190*F190,2) -> 0 | I190: =ROUND(E190*H190,2) -> 0 | K190: =ROUND(E190*J190,2) -> 0 | L190: 21 | M190: =G190*(1+L190/100) -> 0 | N190: 0.00034 | O190: =ROUND(E190*N190,2) -> 0 | P190: 0.093 | Q190: =ROUND(E190*P190,2) -> 0.19 | R190: 801-3 | S190: RTS 18/ II | T190: RTS 18/ II | U190: 1.96 | V190: =ROUND(E190*U190,2) -> 3.92 | AG190: POL1_
C191: základových nebo nadzákladových, | AG191: SPI
C192: 1.NP odkaz d) m.č. 1.38 : 2 | E192: 2 | AG192: VV | AH192: 0
AG193: SPU
A194: 25 | B194: 97003PC01 | C194: Vrtání jádrové v SDK příčce tl 150 mm, prům. min 125 mm vč. odvozu a likvidace vybouraných hmot | D194: ks | E194: 2 | G194: =ROUND(E194*F194,2) -> 0 | I194: =ROUND(E194*H194,2) -> 0 | K194: =ROUND(E194*J194,2) -> 0 | L194: 21 | M194: =G194*(1+L194/100) -> 0 | N194: 0 | O194: =ROUND(E194*N194,2) -> 0 | P194: 0 | Q194: =ROUND(E194*P194,2) -> 0 | S194: Vlastní | T194: Indiv | U194: 0 | V194: =ROUND(E194*U194,2) -> 0 | AG194: POL1_
C195: 1.PP - odkaz b) : 1 | E195: 1 | AG195: VV | AH195: 0
C196: 1.NP - odkaz b) : 1 | E196: 1 | AG196: VV | AH196: 0
C197: Mezisoučet | E197: 2 | AG197: VV | AH197: 1
AG198: SPU
A199: Díl: | B199: 99 | C199: Staveništní přesun hmot | G199: =SUMIF(AG200:AG202,"<>NOR",G200:G202) -> 0 | I199: =SUM(I200:I202) -> 0 | K199: =SUM(K200:K202) -> 0 | M199: =SUM(M200:M202) -> 0 | O199: =SUM(O200:O202) -> 0 | Q199: =SUM(Q200:Q202) -> 0 | V199: =SUM(V200:V202) -> 10.33 | AG199: DIL
A200: 26 | B200: 999281108R00 | C200: Přesun hmot pro opravy a údržbu objektů pro opravy a údržbu dosavadních objektů včetně vnějších plášťů výšky do 12 m, | D200: t | E200: 5.45859 | G200: =ROUND(E200*F200,2) -> 0 | I200: =ROUND(E200*H200,2) -> 0 | K200: =ROUND(E200*J200,2) -> 0 | L200: 21 | M200: =G200*(1+L200/100) -> 0 | N200: 0 | O200: =ROUND(E200*N200,2) -> 0 | P200: 0 | Q200: =ROUND(E200*P200,2) -> 0 | R200: 801-4 | S200: RTS 18/ II | T200: RTS 18/ II | U200: 1.892 | V200: =ROUND(E200*U200,2) -> 10.33 | AG200: POL7_
C201: oborů 801, 803, 811 a 812 | AG201: SPI
AG202: SPU
... 89 more rows

Sheet VZ102_RN
C1: REKAPITULACE
C2: REKONSTRUKCE KLIMATIZACE OBJEKTU Q, větev c1
C4: SO03 Objekt specializovaných výukových prostor
C5: D1.4.1 Vzduchotechnika a klimatizace
B7: Položka | C7: Název | D7: Celkem
B8: 1 | C8: Zařízení č.1 - Větrání fakultního foyer | D8: =VZ102_Slepy_rozpocet!H45 -> 0
B9: 2 | C9: Zařízení č.2 - Větrání studentského snackbaru | D9: =VZ102_Slepy_rozpocet!H115 -> 0
B10: 3 | C10: Zařízení č.3 - Větrání chodeb v 1.PP | D10: =VZ102_Slepy_rozpocet!H158 -> 0
B11: 4 | C11: Zařízení č.4 - Klimatizace fakultního foyer a studentského snackbaru | D11: =VZ102_Slepy_rozpocet!H195 -> 0
B12: 5 | C12: Zařízení č.5 - Klimatizace místností v 1.PP a 1.NP (jihovýchod) | D12: =VZ102_Slepy_rozpocet!H229 -> 0
B13: 6 | C13: Systém centrálního řízení a monitoringu - BMS protokol (BACnet) | D13: =VZ102_Slepy_rozpocet!H238 -> 0
B14: 7 | C14: Zpracování projektové dokumentace (SA, VZ, ZT, EL, MaR) | D14: =VZ102_Slepy_rozpocet!H241 -> 0
B15: 8 | C15: Ostatní položky | D15: =VZ102_Slepy_rozpocet!H248 -> 0
C16: CELKEM bez DPH | D16: =SUM(D8:D15) -> 0

Sheet VZ102_Slepy_rozpocet
A1: Položka | B1: Název, zkrácený popis | C1: Výrobce | D1: Kód CZ-CPA | E1: MJ | F1: Počet | G1: Jednot. cena | H1: Cena celkem
A2: ZAŘÍZENÍ č. 1 - Větrání fakultního foyer
B3: Výměna větracích jednotek pro m.č. 1.20
A4: 1.1 (VZ 1a VZ 1b VZ 1c VZ 1d) | B4: Větrací rekuperační jednotka závěsná navrhované množství čerstvého vzduchu 1000 m3/h; min. externí tlak 170 Pa ventilátory s DC motory Pi = 2x210 kW filtrace vzduchu na odvodu G3, řízení teploty vzduchu, obtok rekuperačního výměníku, teplotní účinnost rekuperace při vysokých/středních/nízkých otáčkách ventilátoru: min. 79,6 / 81,8 / 86,1%, entalpická účinnosti rekuperace vysokých/středních/nízkých otáčkách ventilátoru: min. 68,6 / 71,7 / 77,9%, akustický tlak do okolí Lp při vysokých/středních/nízkých otáčkách ventilátoru max. 42,5 / 40,0 / 32,5 dB(A) vyhovující požadavkům směrnice na Ecodesign větracích jednotek max. rozměry 1350 x 1200 x 400 (d x š x v) max. hmotnost 80 kg | D4: 28.25.12 | E4: ks | F4: 4 | H4: =F4*G4 -> 0
B5: Montáž větrací jednotky | E5: ks | F5: 4 | H5: 0
A6: 1.2 | B6: Filtrační kazeta s víkem se zámky a výměnnným rámem s filtrační vložkou G3; množství vzduchu 1000 m3/h materiál provedení: pozinkovaná ocel max. počáteční tlaková ztráta 20 Pa připojovací rozměr průměr 315 mm | D6: 43.22.12 | E6: ks | F6: 4 | H6: 0
B7: Montáž filtrační kazety | E7: ks | F7: 4 | H7: 0
A8: 1.3 (OV 1a OV 1b OV 1c OV 1d) | B8: Ohřívač vzduchu elektrický do kruhového potrubí s plynulou regulací výkonu množství ohřívaného vzduchu 1000 m3/h; topný výkon 2,5 kW; 220 V; možnost řízení teploty vzduchu signálem 0-10V; bezpečnostní prvky (teplotní čidla), havarijní termostat materiál provedení - pozinkovaný plech; připojovací hrdla průměr D 250 mm | D8: 43.22.12 | E8: ks | F8: 4 | H8: 0
A9: 1.3a | B9: Adaptér pro externí řízení výkonu elektrického ohřívače | D9: 43.22.12 | E9: ks | F9: 4 | H9: 0
B10: Montáž ohřívače vč. zapojení adaptéru | E10: kpl | F10: 4 | H10: 0
A11: 1.4 | B11: Pružná manžeta kruhová pro napojovací hrdla větrací jednotky průměr D250 mm, délka 100 ÷ 150 mm | D11: 43.22.12 | E11: ks | F11: 16 | H11: 0
B12: Montáž | E12: ks | F12: 16 | H12: 0
A13: 1.5 | B13: Uzavírací klapka se servopohonem | C13: stávající
B14: Demontáž a opětovná montáž | E14: ks | F14: 4 | H14: =F14*G14 -> 0
A15: 1.6 | B15: Tlumič hluku 500 x 250 mm - délka 1m | C15: stávající
B16: Demontáž a opětovná montáž | E16: ks | F16: 20 | H16: =F16*G16 -> 0
B17: Vzduchotechnické potrubí čtyřhranné skupiny I. z pozinkovaného plechu
A18: 1.7 | B18: Do obvodu 1600 mm 40% tvarovek | D18: 43.22.12 | E18: bm | F18: 50 | H18: =F18*G18 -> 0
B19: Vzduchotechnické potrubí kruhové skupiny I. z pozinkovaného plechu
A20: 1.8 | B20: Do průměru D250 20% tvarovek | D20: 43.22.12 | E20: bm | F20: 17 | H20: =F20*G20 -> 0
A21: 1.9 | B21: Do průměru D315 100% tvarovek | D21: 43.22.12 | E21: bm | F21: 2 | H21: =F21*G21 -> 0
A22: 1.10 | B22: Zaslepení kruhového potrubí průměr D100 | D22: 43.22.12 | E22: ks | F22: 3 | H22: =F22*G22 -> 0
B23: Montáž potrubí (zahrnuje nové i stávající potrubí)
B24: Čtyřhranné potrubí do obvodu 1050 mm 10% tvarovek | E24: bm | F24: 12 | H24: =F24*G24 -> 0
B25: Čtyřhranné potrubí do obvodu 1500 mm 40% tvarovek | E25: bm | F25: 95 | H25: 0
B26: Čtyřhranné potrubí do obvodu 1890 mm 20% tvarovek | E26: bm | F26: 2 | H26: 0
B27: Kruhové potrubí průměru D160 mm 10% tvarovek | E27: bm | F27: 9 | H27: 0
B28: Kruhové potrubí průměru D250 mm 20% tvarovek | E28: bm | F28: 17 | H28: 0
B29: Kruhové potrubí průměru D315 mm 100% tvarovek | E29: bm | F29: 2 | H29: 0
A30: 1.11 | B30: Tepelná izolace potrubí vzduchu rohožemi z minerální plsti tl. 4 cm s Al fólií, měrná hmotnost 80 kg/m3 | D30: 43.29.11 | E30: m2 | F30: 95 | H30: 0
B31: Montáž tepelné izolace | E31: m2 | F31: 95 | H31: 0
A32: 1.12 | B32: Demontáž části stávajícího potrubí a elementů do šrotu | D32: 43.22.12
B33: Demontáž větrací jednotky VAM 1000 | E33: ks | F33: 4 | H33: =F33*G33 -> 0
B34: Demontáž kruhové klapky se servopohonem D100 mm | E34: ks | F34: 4 | H34: 0
B35: Demontáž regulátoru konstantního průtoku D100 mm | E35: ks | F35: 4 | H35: 0
B36: Demontáž pružných manžet se čtyřhrannou přírubou | E36: ks | F36: 8 | H36: 0
B37: Demontáž čtyřhranného potrubí | E37: m2 | F37: 40 | H37: 0
B38: Demontáž kruhového potrubí | E38: m2 | F38: 10 | H38: 0
B39: Demontáž flexibilních vzduchovodů | E39: bm | F39: 10 | H39: 0
A40: 1.13 | B40: Demontáž části stávajícího potrubí pro další využití včetně tepelných izolací | D40: 43.22.12
B41: Demontáž čtyřhranného potrubí do obvodu 1050 mm 10% tvarovek | E41: bm | F41: 12 | H41: =F41*G41 -> 0
B42: Demontáž čtyřhranného potrubí do obvodu 1500 mm 20% tvarovek | E42: bm | F42: 51 | H42: =F42*G42 -> 0
B43: Demontáž kruhového potrubí průměru D160 mm | E43: bm | F43: 9 | H43: =F43*G43 -> 0
B44: Demontáž kruhového potrubí průměru D250 mm | E44: bm | F44: 2 | H44: =F44*G44 -> 0
B45: Celkem | H45: =SUM(H3:H44) -> 0
A46: ZAŘÍZENÍ č. 2 - Větrání studentského snackbaru
B47: Výměna větrací jednoty pro m.č. 1.38
A48: 2.1 (VZ 2) | B48: Větrací rekuperační jednotka závěsná navrhované množství čerstvého vzduchu 1000 m3/h; min. externí tlak 170 Pa ventilátory s DC motory Pi = 2x210 kW filtrace vzduchu na odvodu G3, řízení teploty vzduchu, obtok rekuperačního výměníku, teplotní účinnost rekuperace při vysokých/středních/nízkých otáčkách ventilátoru: min. 79,6 / 81,8 / 86,1%, entalpická účinnosti rekuperace vysokých/středních/nízkých otáčkách ventilátoru: min. 68,6 / 71,7 / 77,9%, akustický tlak do okolí Lp při vysokých/středních/nízkých otáčkách ventilátoru max. 42,5 / 40,0 / 32,5 dB(A) vyhovující požadavkům směrnice na Ecodesign větracích jednotek max. rozměry 1350 x 1200 x 400 (d x š x v) max. hmotnost 80 kg | D48: 28.25.12 | E48: ks | F48: 1 | H48: =F48*G48 -> 0
A49: 2.1a | B49: Kabelový ovladač pro větrací jednotku | D49: 43.22.12 | E49: ks | F49: 1 | H49: 0
B50: Montáž větrací jednotky | E50: ks | F50: 1 | H50: 0
A51: 2.2 | B51: Vložka tlumiče hluku š 100 x v 250 x 1000 mm s náběhovými hranami útlum v oktávách 63 125 250 500 1000 2000 4000 8000 Hz 5 5 11 21 40 42 28 19 dB | D51: 43.22.12 | E51: ks | F51: 18 | H51: 0
B52: Montáž | E52: ks | F52: 18 | H52: 0
A53: 2.3 | B53: Flexibilní tlumič hluku kruhový D315 mm - délka 1 m útlum v oktávách 63 125 250 500 1000 2000 4000 8000 Hz 8,6 14,9 15,5 14,6 19,3 16,4 5,6 6,3 dB | D53: 43.22.12 | E53: ks | F53: 1 | H53: 0
B54: Montáž | E54: ks | F54: 1 | H54: 0
A55: 2.4 | B55: Filtrační kazeta s víkem se zámky a výměnnným rámem s filtrační vložkou G3; množství vzduchu 1000 m3/h materiál provedení: pozinkovaná ocel max. počáteční tlaková ztráta 20 Pa připojovací rozměr průměr 315 mm | D55: 43.22.12 | E55: ks | F55: 1 | H55: 0
H56: 0
A57: 2.5 (OV 2) | B57: Ohřívač vzduchu elektrický do kruhového potrubí s plynulou regulací výkonu množství ohřívaného vzduchu 1000 m3/h; topný výkon 2,5 kW; 220 V; možnost řízení teploty vzduchu signálem 0-10V; bezpečnostní prvky (teplotní čidla), havarijní termostat materiál provedení - pozinkovaný plech; připojovací hrdla průměr D 250 mm | D57: 43.22.12 | E57: ks | F57: 1 | H57: 0
A58: 2.5a | B58: Adaptér pro externí řízení výkonu elektrického ohřívače | D58: 43.22.12 | E58: ks | F58: 1 | H58: 0
B59: Montáž ohřívače vč. zapojení adaptéru | E59: kpl | F59: 1 | H59: 0
A60: 2.6 | B60: Regulační klapka těsná do čtyřhranného potrubí s přípravou pro servopohon 5 Nm (servopohon dodávka MaR) připojovací rozměr 500x250 mm materiál provedení pozinovaný plech | D60: 43.22.12 | E60: ks | F60: 1 | H60: 0
B61: Montáž | E61: ks | F61: 1 | H61: 0
A62: 2.7 | B62: Regulační klapka těsná do čtyřhranného potrubí s přípravou pro servopohon 5 Nm (servopohon dodávka MaR) připojovací rozměr 400x200 mm materiál provedení pozinovaný plech | D62: 43.22.12 | E62: ks | F62: 1 | H62: 0
B63: Montáž | E63: ks | F63: 1 | H63: 0
A64: 2.8 | B64: Regulační klapka jednolistová do kruhového potrubí s ručním ovládáním; připojovací rozměr D250 materiál provedení pozinkovaný plech | D64: 43.22.12 | E64: ks | F64: 2 | H64: 0
B65: Montáž | E65: ks | F65: 2 | H65: 0
A66: 2.9 | B66: Regulační klapka jednolistová do kruhového potrubí s ručním ovládáním; připojovací rozměr D200 materiál provedení pozinkovaný plech | D66: 43.22.12 | E66: ks | F66: 3 | H66: 0
B67: Montáž | E67: ks | F67: 3 | H67: 0
A68: 2.10 | B68: Přívodní vířivý anemostat s nastavitelnými lamelami množství vzduchu 450 m3/h; výška instalace 3,1 m materiál provedení pozinkovaný plech kruhové hrdlo horizontální D250 mm, čelní deska čtvercová 600x600 mm, prášková barva odstín RAL 9010 instalace do rastrového podhledu 600x600 mm max. tlaková ztráta 15 Pa max. hladina akustického výkonu 40 dB(A) | D68: 43.22.12 | E68: ks | F68: 2 | H68: 0
B69: Montáž | E69: ks | F69: 2 | H69: 0
A70: 2.11 | B70: Odvodní anemostat množství vzduchu 335 m3/h; výška instalace 3,1 m materiál provedení pozinkovaný plech kruhové hrdlo horizontální D200 mm, čelní deska čtvercová 300x300 mm, prášková barva odstín RAL 9010 instalace do rastrového podhledu 600x600 mm max. tlaková ztráta 40 Pa max. hladina akustického výkonu 40 dB(A) | D70: 43.22.12 | E70: ks | F70: 3 | H70: 0
B71: Montáž | E71: ks | F71: 3 | H71: 0
A72: 2.12 | B72: Sací protidešťová žaluzie se sítem a rámem do potrubí rozměr 1000x300 mm; materiál elexovaný hliník; odstín RAL dle stávajících žaluzií; množství vzduchcu 1900 m3/h max. tlaková ztráta 15 Pa | D72: 43.22.12 | E72: ks | F72: 1 | H72: 0
B73: Montáž | E73: ks | F73: 1 | H73: 0
A74: 2.13 | B74: Výfuková protidešťová žaluzie se sítem a rámem do potrubí; rozměr 1600x300 mm; mater. elexovaný hliník; odstín RAL dle stávajících žaluzií; množství vzduchu 3550 m3/h max. tlaková ztráta 25 Pa | D74: 43.22.12 | E74: ks | F74: 1 | H74: 0
B75: Montáž | E75: ks | F75: 1 | H75: 0
A76: 2.14 | B76: Pružná manžeta kruhová pro napojovací hrdla větrací jednotky průměr D250 mm, délka 100 ÷ 150 mm | D76: 43.22.12 | E76: ks | F76: 4 | H76: 0
B77: Montáž | E77: ks | F77: 4 | H77: 0
A78: 2.15 | B78: Ohebné potrubí s hlukovou izolací průměr D250 mm útlum v oktávách 63 125 250 500 1000 2000 4000 8000 Hz 19,2 20,3 16,6 14,8 15,1 15,9 21,2 18,0 dB | D78: 43.22.12 | E78: bm | F78: 2 | H78: 0
B79: Montáž | E79: bm | F79: 2 | H79: 0
A80: 2.16 | B80: Ohebné potrubí s hlukovou izolací průměr D200 mm útlum v oktávách 63 125 250 500 1000 2000 4000 8000 Hz 19,4 20,6 16,8 15,0 15,1 15,7 21,1 17,9 dB | D80: 43.22.12 | E80: bm | F80: 3 | H80: 0
B81: Montáž | D81: 43.22.12 | E81: bm | F81: 3 | H81: 0
B82: Vzduchotechnické potrubí čtyřhranné skupiny I. z pozinkovaného plechu
A83: 2.17 | B83: Do obvodu 1050 mm 100% tvarovek | D83: 43.22.12 | E83: bm | F83: 1 | H83: =F83*G83 -> 0
A84: 2.18 | B84: Do obvodu 1500 mm 20% tvarovek | D84: 43.22.12 | E84: bm | F84: 50 | H84: =F84*G84 -> 0
A85: 2.19 | B85: Do obvodu 1890 mm 30% tvarovek | D85: 43.22.12 | E85: bm | F85: 3 | H85: =F85*G85 -> 0
B86: Vzduchotechnické potrubí kruhové skupiny I. z pozinkovaného plechu
A87: 2.20 | B87: Do průměru D200 rovné | D87: 43.22.12 | E87: bm | F87: 4 | H87: =F87*G87 -> 0
A88: 2.21 | B88: Do průměru D250 30% tvarovek | D88: 43.22.12 | E88: bm | F88: 9 | H88: =F88*G88 -> 0
A89: 2.22 | B89: Do průměru D315 20% tvarovek | D89: 43.22.12 | E89: bm | F89: 5 | H89: =F89*G89 -> 0
B90: Montáž potrubí
B91: Čtyřhranné potrubí do obvodu 1050 mm 100% tvarovek | E91: bm | F91: 1 | H91: =F91*G91 -> 0
B92: Čtyřhranné potrubí do obvodu 1500 mm 20% tvarovek | E92: bm | F92: 50 | H92: 0
B93: Čtyřhranné potrubí do obvodu 1890 mm 30% tvarovek | E93: bm | F93: 3 | H93: 0
B94: Kruhové potrubí průměru D200 mm, rovné | E94: bm | F94: 4 | H94: 0
B95: Kruhové potrubí průměru D250 mm 30% tvarovek | E95: bm | F95: 9 | H95: 0
B96: Kruhové potrubí průměru D315 mm 20% tvarovek | E96: bm | F96: 5 | H96: 0
A97: 2.23 | B97: Zaslepení kruhového potrubí průměr D160 | D97: 43.22.12 | E97: ks | F97: 2 | H97: 0
A98: 2.24 | B98: Tepelná izolace potrubí vzduchu rohožemi z minerální plsti tl. 4 cm s Al fólií, měrná hmotnost 80 kg/m3 | D98: 43.29.11 | E98: m2 | F98: 94 | H98: 0
B99: Montáž tepelné izolace | E99: m2 | F99: 94 | H99: 0
A100: 2.25 | B100: Demontáž části stávajícího potrubí a elementů do šrotu | D100: 43.22.12
B101: Demontáž větrací jednotky VAM 500 | E101: ks | F101: 1 | H101: =F101*G101 -> 0
B102: Demontáž kruhové klapky se servopohonem D100 mm | E102: ks | F102: 1 | H102: 0
B103: Demontáž regulátoru konstantního průtoku D100 | E103: ks | F103: 1 | H103: 0
B104: Demontáž uzavírací klapky se servopohonem D100 | E104: ks | F104: 1 | H104: 0
B105: Demontáž uzavírací klapky se servopohonem D200 | E105: ks | F105: 1 | H105: 0
B106: Demontáž uzavírací klapky se servopohonem 200x200 | E106: ks | F106: 1 | H106: 0
B107: Demontáž pružných manžet se čtyřhrannou přírubou | E107: ks | F107: 2 | H107: 0
B108: Demontáž pružných manžet s kruhovou přírubou | E108: ks | F108: 4 | H108: 0
B109: Demontáž flexibilních vzduchovodů | E109: bm | F109: 4 | H109: 0
B110: Demontáž přívodní vyústky v m.č.1.38 | E110: ks | F110: 1 | H110: 0
B111: Demontáž odvodní vyústky v m.č. 1.38 | E111: ks | F111: 1 | H111: 0
B112: Demontáž protidešťové žaluzie 700 x 300 | E112: ks | F112: 1 | H112: 0
B113: Demontáž protidešťové žaluzie 1400 x 300 | E113: ks | F113: 1 | H113: 0
B114: Demontáž stávajícího potrubí do šrotu vč. izolací | E114: m2 | F114: 60 | H114: 0
B115: Celkem | H115: =SUM(H47:H114) -> 0
A116: ZAŘÍZENÍ č. 3 - Větrání chodeb v 1.PP
B117: Doplnění ventilátoru pro m.č. 1.47 a m.č. 1.72
A118: 2018-01-03 | B118: Ventilátor do kruhového potrubí max. množství čerstvého vzduchu 400 m3/h; externí tlak 130 Pa ventilátory řízené EC motory Pi = 60 W připojovací rozměr průměr 160 mm hlukové parametry sání 62 dB(A) výtlak 62 dB(A) okolí 45 dB(A) | D118: 28.25.2 | E118: ks | F118: 1 | H118: =F118*G118 -> 0
B119: Montáž | E119: ks | F119: 1 | H119: 0
A120: 2018-02-03 | B120: Filtrační kazeta s víkem se zámky a výměnnným rámem s filtrační vložkou G3; max. množství vzduchu 400 m3/h materiál provedení: pozinkovaná ocel max. počáteční tlaková ztráta 25 Pa připojovací rozměr průměr 160 mm | D120: 43.22.12 | E120: ks | F120: 1 | H120: 0
B121: Montáž | E121: ks | F121: 1 | H121: 0
A122: 2018-03-03 | B122: Pružná manžeta kruhová pro napojovací hrdla ventilátoru průměr D160 mm, délka 100 ÷ 150 mm | D122: 43.22.12 | E122: ks | F122: 2 | H122: 0
B123: Montáž | E123: ks | F123: 2 | H123: 0
A124: 3.4 | B124: Vložka tlumiče hluku š 100 x v 250 x 1000 mm s náběhovými hranami útlum v oktávách 63 125 250 500 1000 2000 4000 8000 Hz 5 5 11 21 40 42 28 19 dB | D124: 43.22.12 | E124: ks | F124: 3 | H124: 0
B125: Montáž | E125: ks | F125: 18 | H125: 0
A126: 3.5 | B126: Flexibilní tlumič hluku kruhový D160 mm - délka 1 m útlum v oktávách 63 125 250 500 1000 2000 4000 8000 Hz 7,2 22,5 28,3 25,6 27,9 32,0 23,4 16,3 dB | D126: 43.22.12 | E126: ks | F126: 1 | H126: 0
B127: Montáž | E127: ks | F127: 1 | H127: 0
A128: 3.6 | B128: Servisní dvířka do čtyřhranného potrubí rozměr 400 x 300 mm, materiál: pozinkovaný plech | D128: 43.22.12 | E128: ks | F128: 1 | H128: 0
B129: Montáž | E129: ks | F129: 1 | H129: 0
A130: 3.7 (KL3d) | B130: Regulační klapka do čtyřhranného potrubí s přípravou pro servopohon 5 Nm (servopohon dodávka MaR) připojovací rozměr 200x200 mm max. množství vzduchu 400 m3/h materiál provedení pozinovaný plech | D130: 43.22.12 | E130: ks | F130: 1 | H130: 0
B131: Montáž | E131: ks | F131: 1 | H131: 0
A132: 3.8 (KL3e) | B132: Regulační klapka do čtyřhranného potrubí s přípravou pro servopohon 5 Nm (servopohon dodávka MaR) připojovací rozměr 200x200 mm max. množství vzduchu 400 m3/h materiál provedení pozinovaný plech | D132: 43.22.12 | E132: ks | F132: 1 | H132: 0
B133: Montáž | E133: ks | F133: 1 | H133: 0
A134: 3.9 | B134: Odvodní element s pevnými lamelami do SDK podhledu 600 x 600 mm rozměr čelní desky 400 x 400 mm, napojení na potrubí množství vzduchu 400 m3/h; max tlaková ztráta 10 Pa materiál elexovaný hliník, odstín dle podhledových desek | D134: 43.22.12 | E134: ks | F134: 1 | H134: 0
B135: Montáž | E135: ks | F135: 1 | H135: 0
A136: 3.10 | B136: Pružná manžeta čtyřhranná pro napojení nasávací mřížky v podhledu rozměr 200 x 200 mm, délka 80 ÷ 150 mm | D136: 43.22.12 | E136: ks | F136: 1 | H136: 0
B137: Montáž | E137: ks | F137: 1 | H137: 0
A138: 3.11 | B138: Ohebné potrubí s hlukovou izolací průměr D160 mm útlum v oktávách 63 125 250 500 1000 2000 4000 8000 Hz 19,4 20,6 16,8 15,0 15,1 15,7 21,1 17,9 dB | D138: 43.22.12 | E138: bm | F138: 1 | H138: 0
B139: Montáž | E139: bm | F139: 1 | H139: 0
A140: 3.12 | B140: Ohebné potrubí s hlukovou izolací průměr D200 mm útlum v oktávách 63 125 250 500 1000 2000 4000 8000 Hz 19,4 20,6 16,8 15,0 15,1 15,7 21,1 17,9 dB | D140: 43.22.12 | E140: bm | F140: 1 | H140: 0
B141: Montáž | E141: bm | F141: 1 | H141: 0
B142: Vzduchotechnické potrubí čtyřhranné skupiny I. z pozinkovaného plechu
A143: 3.13 | B143: Do obvodu 1050 mm, 40% tvarovek | D143: 43.22.12 | E143: bm | F143: 1 | H143: =F143*G143 -> 0
A144: 3.14 | B144: Do obvodu 1500 mm, 20% tvarovek | D144: 43.22.12 | E144: bm | F144: 4 | H144: =F144*G144 -> 0
A145: 3.15 | B145: Do obvodu 1890 mm, 30% tvarovek | D145: 43.22.12 | E145: bm | F145: 1 | H145: =F145*G145 -> 0
B146: Vzduchotechnické potrubí kruhové skupiny I. z pozinkovaného plechu
A147: 3.16 | B147: Průměr 160 mm, rovné | D147: 43.22.12 | E147: bm | F147: 1 | H147: =F147*G147 -> 0
B148: Montáž potrubí
B149: Čtyřhranné potrubí do obvodu 1050 mm 40% tvarovek | E149: bm | F149: 1 | H149: =F149*G149 -> 0
B150: Čtyřhranné potrubí do obvodu 1500 mm 20% tvarovek | E150: bm | F150: 4 | H150: 0
B151: Čtyřhranné potrubí do obvodu 1890 mm 30% tvarovek | E151: bm | F151: 1 | H151: 0
B152: Kruhové potrubí průměru D160 mm, rovné | E152: bm | F152: 1 | H152: 0
A153: 3.17 | B153: Tepelná izolace potrubí vzduchu pásy z minerální plsti tl. 4 cm s Al fólií, měrná hmotnost 40 kg/m3 | D153: 43.29.11 | E153: m2 | F153: 9 | H153: 0
B154: Montáž tepelné izolace | E154: m2 | F154: 9 | H154: 0
A155: 3.18 | B155: Demontáž části stávajícího potrubí do šrotu | D155: 43.22.12
B156: Demontáž čtyřhranného potrubí | E156: m2 | F156: 2 | H156: =F156*G156 -> 0
B157: Demontáž kruhového potrubí | E157: m2 | F157: 3 | H157: =F157*G157 -> 0
B158: Celkem | H158: =SUM(H117:H157) -> 0
A159: ZAŘÍZENÍ č. 4 (E1.1-1a) - Klimatizace fakultního foyer a student. snackbaru
B160: Náhrada kanálových jednotek pro m.č. 1.20 a m.č. 1.38
A161: E1.1-1a.1.1 | B161: Systém klimatizace s proměnným průtokem chladiva (VRF) určený pro chlazení a monovalentní vytápění s možností ekvitermního řízení vypařovací teploty v rozsahu 6°C až 16°C a kondenzační teploty 43°C až 49°C na základě venkovní teploty vzduchu. Proměnná teplota slouží k minimalizaci provozních nákladů, maximálnímu zvýšení celoroční účinnosti a komfortnímu zvýšení teploty vyfukovaného vzduchu při maximálním snížení odvlhčovacího výkonu v režimu chlazení. Kondenzační jednotka s plynule regulovatelnými scroll kompresory a akumulačním výměníkem tepla pro nepřetržité vytápění během odtávacího cyklu. Venkovní kondenzační jednotka modul vel.14HP, index připojitelnosti 101%, chladivo R410A tepelné čerp. s nepřetržitým vytápěním (topný kabel) jmenovitý chladící výkon Qch = 40,0 kW (min.ESEER 6,83), jmenovitý topný výkon Qt = 45,0 kW (min.COP 4,02), el. příkon při chlazení Pi = 11,0 kW (min. EER 3,64) při ekviterm. řízení vypař.teploty (Ti=19°C WB/Tex=35°C DB) el. příkon při vytápění Pi = 11,2 kW (min. COP 4,02) při ekviterm. řízení vypař.teploty (Ti=20°C WB/Tex=6°C WB) akustický výkon Lw: max. 81 dB(A) akustický tlak Lp (1m od jednotky): max. 61 dB(A) provozní rozsah chlazení: venkovní te = -5 až 43°C provozní rozsah vytápění: venkovní te = -20 až 15,5°C max. rozměry 1250 x 800 x 1700 (š x hl x v) max. hmotnost 370 kg | D161: 28.25.12 | E161: ks | F161: 1 | H161: =F161*G161 -> 0
A162: E1.1-1a.2.1 | B162: Vnitřní kazetová jednotka s distribucí vzduchu v rozsahu 360° (3x3) s ventilátorem a kondenzátním čerpadlem jmenovitý chladící výkon Qch = 7,1 kW, jmenovitý topný výkon Qt = 8,0 kW, celkový/citelný chladící výkon při vypař. teplotě Tv=6°C Qthc = 6,5 kW / Qshc = 5,2 kW (Ti=26°C / 45% r.v.) celkový/citelný chladící výkon při vypař. teplotě Tv=9°C Qthc = 4,9 kW / Qshc = 4,4 kW (Ti=26°C / 45% r.v.) jmen. elektr. příkon při chlazení Pi=61W (230V / 50Hz) akust. tlak Lp (1m od jednotky) vysoký/jmenov./nízký: max. 35 / 33 / 30 dB(A) max.rozměry 850 x 850 x 210 mm ( š x d x v) max. instalační výška jednotky : 220 mm servisní přístup ke svorkovnici přes dekorační panel | D162: 28.25.12 | E162: ks | F162: 1 | H162: 0
A163: E1.1-1a.2.2 - E1.1-1a.2.6 | B163: Vnitřní kazetová jednotka s distribucí vzduchu v rozsahu 360° (3x3) s ventilátorem a kondenzátním čerpadlem jmenovitý chladící výkon Qch = 5,6 kW, jmenovitý topný výkon Qt = 6,3 kW, celkový/citelný chladící výkon při vypař. teplotě Tv=6°C Qthc = 5,1 kW / Qshc = 4,1 kW (Ti=26°C / 45% r.v.) celkový/citelný chladící výkon při vypař. teplotě Tv=9°C Qthc = 3,8 kW / Qshc = 3,4 kW (Ti=26°C / 45% r.v.) jmen. elektr. příkon při chlazení Pi=53W (230V / 50Hz) akust. tlak Lp (1m od jednotky) vysoký/jmenov./nízký: max. 33 / 31 / 29 dB(A) max.rozměry 850 x 850 x 210 mm ( š x d x v) max. instalační výška jednotky : 220 mm servisní přístup ke svorkovnici přes dekorační panel | D163: 28.25.12 | E163: ks | F163: 5 | H163: 0
A164: E1.1-1a.2.7 | B164: Vnitřní 2-cestná kazetová jednotka s DC ventilátorem a kondenzátním čerpadlem jmenovitý chladící výkon Qch = 4,5 kW, jmenovitý topný výkon Qt = 5,0 kW, celkový/citelný chladící výkon při vypař. teplotě Tv=6°C Qthc = 4,1 kW / Qshc = 3,3 kW (Ti=26°C / 45% r.v.) celkový/citelný chladící výkon při vypař. teplotě Tv=9°C Qthc = 3,0 kW / Qshc = 2,7 kW (Ti=26°C / 45% r.v.) max.rozměry 620 x 780 x 310 mm ( š x d x v) jmen. elektr. příkon při chlazení Pi=41W (230V / 50Hz) akust. tlak Lp (1m od jednotky) vysoký/jmenov./nízký: max. 36 / 33 / 31 dB(A) max. instalační výška jednotky : 350 mm | D164: 28.25.12 | E164: ks | F164: 1 | H164: 0
A165: E1.1-1a.2.8 | B165: Dekorační panel pro kazetovou jednotku s kruhovým výdechem | D165: 28.25.12 | E165: ks | F165: 6 | H165: 0
A166: E1.1-1a.2.9 | B166: Dekorační panel pro kazetovou jednotku se dvěma výdechy | D166: 28.25.12 | E166: ks | F166: 1 | H166: 0
B167: Kabelový ovladač pro kazetovou jednotku se 2 výdechy | D167: 43.22.12 | E167: ks | F167: 1 | H167: 0
B168: Speciální Cu tvarovka pro rozbočení potrubí chladiva a oleje - výkonový index 200 | D168: 43.22.12 | E168: ks | F168: 4 | H168: 0
B169: Speciální Cu tvarovka pro rozbočení potrubí chladiva a oleje - výkonový index 201÷290 | D169: 43.22.12 | E169: ks | F169: 1 | H169: 0
B170: Speciální Cu tvarovka pro rozbočení potrubí chladiva a oleje - výkonový index 291÷640 | D170: 43.22.12 | E170: ks | F170: 1 | H170: 0
B171: Cu potrubí chladiva izolované syntetickým kaučukem vlastnosti tepelné izolace: tepelná vodicost l ≤ 0,033 W/m.K při teplotě 0°C součinitel difúzního odporu m ≥ 10000 trubky f 6,4 mm | D171: 43.22.12 | E171: bm | F171: 52 | H171: 0
B172: Cu potrubí chladiva izolované syntetickým kaučukem vlastnosti tepelné izolace: tepelná vodicost l ≤ 0,033 W/m.K při teplotě 0°C součinitel difúzního odporu m ≥ 10000 trubky f 9,5 mm | D172: 43.22.12 | E172: bm | F172: 45 | H172: 0
B173: Cu potrubí chladiva izolované syntetickým kaučukem vlastnosti tepelné izolace: tepelná vodicost l ≤ 0,033 W/m.K při teplotě 0°C součinitel difúzního odporu m ≥ 10000 trubky f 12,7 mm | D173: 43.22.12 | E173: bm | F173: 52 | H173: 0
B174: Cu potrubí chladiva izolované syntetickým kaučukem vlastnosti tepelné izolace: tepelná vodicost l ≤ 0,033 W/m.K při teplotě 0°C součinitel difúzního odporu m ≥ 10000 trubky f 15,9 mm | D174: 43.22.12 | E174: bm | F174: 105 | H174: 0
B175: Cu potrubí chladiva izolované syntetickým kaučukem vlastnosti tepelné izolace: tepelná vodicost l ≤ 0,033 W/m.K při teplotě 0°C součinitel difúzního odporu m ≥ 10000 trubky f 19,1 mm | D175: 43.22.12 | E175: bm | F175: 5 | H175: 0
B176: Cu potrubí chladiva izolované syntetickým kaučukem vlastnosti tepelné izolace: tepelná vodicost l ≤ 0,033 W/m.K při teplotě 0°C součinitel difúzního odporu m ≥ 10000 trubky f 22,2 mm | D176: 43.22.12 | E176: bm | F176: 3 | H176: 0
B177: Cu potrubí chladiva izolované syntetickým kaučukem vlastnosti tepelné izolace: tepelná vodicost l ≤ 0,033 W/m.K při teplotě 0°C součinitel difúzního odporu m ≥ 10000 trubky f 28,5 mm | D177: 43.22.12 | E177: bm | F177: 68 | H177: 0
B178: Pozn: Měděné potrubí musí být dodáno v souladu s ČSN EN 12735-1. Pro venkovní instalaci potrubí chladiva musí být použita tepelná izolace s povrchovou úpravou odolnou UV záření.
B179: Mars koryta pro potrubí chladiva na střeše - stávající | E179: bm | F179: 0 | H179: =F179*G179 -> 0
B180: Požární ucpávka pro potrubí chladiva při prostupu požárně dělícími konstrukcemi | E180: ks | F180: 1 | H180: 0
B181: Zhotovení prostupu ve stěně nebo stropu pro potrubí chladiva včetně následného zapravení | E181: ks | F181: 3 | H181: 0
B182: Komunikační kabeláž k propojení venkovní jednotky a 7 ks vnitřních jednotek, vč. 5 ks jednotek větracích | D182: 43.22.12 | E182: bm | F182: 235 | H182: 0
B183: Komunikační kabeláž k propojení nástěnného ovladače a vnitřní jednotky | D183: 43.22.12 | E183: bm | F183: 7 | H183: 0
B184: Demontáž stávající venkovní jednotky | E184: ks | F184: 1 | H184: 0
B185: Demontáž stávajících vnitřních jednotek | E185: ks | F185: 5 | H185: 0
B186: Demontáž stávajícího potrubí chladiva systému E1.1-1a | E186: kpl | F186: 1 | H186: 0
B187: Odsátí chladiva R410A | E187: kpl | F187: 1 | H187: 0
B188: Ekologická likvidace chladiva | E188: kg | F188: 20 | H188: 0
B189: Ekologická likvidace demontovaného zařízení a potrubí | E189: kg | F189: 650 | H189: 0
B190: Montáž, uvedení do provozu | E190: kpl | F190: 1 | H190: 0
B191: Doplnění chladiva R410A | D191: 43.22.12 | E191: kg | F191: 18 | H191: 0
B192: Provozní zkouška | E192: kpl | F192: 1 | H192: 0
B193: Zkouška těsnosti | E193: kpl | F193: 1 | H193: 0
B194: Evidenční knihy zařízení s chladivem, štítky | E194: kpl | F194: 1 | H194: 0
B195: Celkem | H195: =SUM(H160:H194) -> 0
A196: ZAŘÍZENÍ č.5 (E1.1-1c) - Klimatizace místností v 1.PP a 1.NP (jihovýchod)
B197: Výměna a doplnění parapetních jednotek pro m.č. 1.90 - 1.95, m.č. 1.65 v 1.NP a výměna kanálové jednotky v m.č. 01.47 v 1.PP
A198: E1.1-1c.1.1 | B198: Systém klimatizace s proměnným průtokem chladiva (VRF) určený pro chlazení a monovalentní vytápění s možností ekvitermního řízení vypařovací teploty v rozsahu 6°C až 16°C a kondenzační teploty 43°C až 49°C na základě venkovní teploty vzduchu. Proměnná teplota slouží k minimalizaci provozních nákladů, maximálnímu zvýšení celoroční účinnosti a komfortnímu zvýšení teploty vyfukovaného vzduchu při maximálním snížení odvlhčovacího výkonu v režimu chlazení. Kondenzační jednotka s plynule regulovatelnými scroll kompresory a akumulačním výměníkem tepla pro nepřetržité vytápění během odtávacího cyklu. Venkovní kondenzační jednotka modul vel.10HP, index připojitelnosti 102%, chladivo R410A tepelné čerp. s nepřetržitým vytápěním (topný kabel) jmenovitý chladící výkon Qch = 28,0 kW (min.ESEER 7,2), jmenovitý topný výkon Qt = 31,5 kW (min.COP 4,27), el. příkon při chlazení Pi = 7,29 kW (min. EER 3,73) při ekviterm. řízení vypař.teploty (Ti=19°C WB/Tex=35°C DB) el. příkon při vytápění Pi = 7,38 kW (min. COP 4,27) při ekviterm. řízení vypař.teploty (Ti=20°C WB/Tex=6°C WB) akustický výkon Lw: max. 79 dB(A) akustický tlak Lp (1m od jednotky): max. 58 dB(A) provozní rozsah chlazení: venkovní te = -5 až 43°C provozní rozsah vytápění: venkovní te = -20 až 15,5°C max. rozměry 950 x 800 x 1700 (š x hl x v) max. hmotnost 270 kg | D198: 28.25.12 | E198: ks | F198: 1 | H198: =F198*G198 -> 0
A199: E1.1-1c.2.1 - E1.1-1c.2.2 | B199: Vnitřní parapetní jednotka typ FXLQ25P Qch, chlazení = 2,8 kW, Pi=0,049 kW / 230 V Qt, topení = 3,2 kW, Pi=0,0049 kW / 230 V | C199: DAIKIN | D199: stávající | E199: ks | F199: 2 | G199: - | H199: -
A200: E1.1-1c.2.3 | B200: Středotlaká vnitřní kanálová (mezistropní) jednotka s automatickým nastavením charakteristiky ventilátoru (ESP až 150 Pa) a kondenzátním čerpadlem jmenovitý chladící výkon Qch = 3,6 kW, jmenovitý topný výkon Qt = 4,0 kW, celkový/citelný chladící výkon při vypař. teplotě Tv=6°C Qthc = 3,3 kW / Qshc = 2,6 kW (Ti=26°C / 45% r.v.) celkový/citelný chladící výkon při vypař. teplotě Tv=9°C Qthc = 2,7 kW / Qshc = 2,3 kW (Ti=26°C / 45% r.v.) max.rozměry 550 x 800 x 250 mm ( š x d x v) jmen. elektr. příkon při chlazení Pi=45W (230V / 50Hz) akust. tlak Lp (1m od jednotky) vysoký/střední/nízký: max. 31 / 29 / 26 dB(A) hmotnost jednotky max 30 kg | D200: 28.25.12 | E200: ks | F200: 1 | H200: =F200*G200 -> 0
... 48 more rows

Sheet ZT102_Slepy_rozpocet
C3: REKAPITULACE
C5: ZDRAVOTECHNICKÉ INSTALACE 800 - 721
A6: 1 | C6: A 01 - Vnitřní kanalizace | H6: =H89 -> 0
A7: 2 | C7: A 02 - Vnitřní vodovod | H7: 0
A8: 3 | C8: A 03 - Vnitřní plynovod | H8: 0
A9: 4 | C9: A 04 - Strojní zařízení | H9: 0
A10: 5 | C10: A 05 - Zařizovací předměty | H10: 0
C12: Zdravotechnické instalace - součet | H12: =SUM(H6:H11) -> 0
A14: 6 | C14: DOPLŇKOVÉ KONSTRUKCE 800 - 767 | H14: =H102 -> 0
A16: 7 | C16: TEPELNÉ IZOLACE 800 - 713 | H16: 0
A18: 8 | C18: NÁTĚRY 800 - 783 | H18: =H110 -> 0
C21: CELKEM | H21: =SUM(H12:H20) -> 0
C45: Poznámka :
C46: Ceny jsou uvedeny bez DPH.
C51: V
A59: P.č. | B59: Položka | C59: Popis položky | D59: Kód CZ-CPA | E59: m.j. | F59: počet | G59: jedn. cena | H59: cena celk.
C60: 721 - KANALIZACE
C61: Plastové potrubí kanalizace včetně všech potřebných tvarovek ( odbočky, oblouky, redukce atd. ), prořezu a spojovacích materiálů. Dodávka a montáž
C62: připojovací potrubí
A63: 1 | B63: 721 17-6102 | C63: DN 40 | D63: 43.22.11 | E63: m | F63: 12 | H63: =F63*G63 -> 0
C65: kondenzátní potrubí plastové PVC-U - PN 10
A66: 2 | B66: 722 17-2313 | C66: D 3/4" | D66: 43.22.11 | E66: m | F66: 49 | H66: =F66*G66 -> 0
C68: Vyvedení odpadních výustek
A69: 3 | B69: 721 19-4104 | C69: DN 32 | D69: 43.22.11 | E69: ks | F69: 15 | H69: =F69*G69 -> 0
C71: Zkouška těsnosti kanalizace v objektech
C72: kouřem
A73: 4 | B73: 721 29-0123 | C73: do DN 300 | D73: 43.22.11 | E73: m | F73: 61 | H73: =F73*G73 -> 0
C75: Dodávka plastových tvarovek
A76: 5 | B76: Nabídk. cena | C76: Vodní zápachová uzávěrka pro VZT jednotky | D76: 43.22.11 | E76: ks | F76: 8 | H76: =F76*G76 -> 0
C78: Montáž a osazení plastového odpadního
A79: 6 | B79: Nabídk. cena | C79: příslušenství | D79: 43.22.11 | E79: ks | F79: =SUM(F76:F77) -> 8 | H79: =F79*G79 -> 0
C81: Propojení nového a stávajícího potrubí
A82: 7 | B82: 721 17-0915 | C82: do DN 50 | D82: 43.22.11 | E82: ks | F82: 12 | H82: =F82*G82 -> 0
A84: 8 | B84: Nabídk. cena | C84: Stavební práce při montáži kanalizace | D84: 43.22.11 | E84: hod | F84: 5 | H84: =F84*G84 -> 0
C86: Přesun hmot pro vnitřní kanalizaci
A87: 9 | B87: 998 72-1201 | C87: v objektech do 6 m | D87: 43.22.11 | E87: % | F87: =SUM(H62:H86) -> 0 | G87: 0.0205 | H87: =CEILING(PRODUCT(F87:G87),1) -> 0
C89: Vnitřní kanalizace - celkem | H89: =SUM(H62:H88) -> 0
C92: DOPLŇKOVÉ KONSTRUKCE
C93: Montáž atypických konstrukcí
A94: 1 | B94: 767 99-5101 | C94: do hmotnosti 5 kg | D94: 43.22.11 | E94: kg | F94: 40 | H94: =F94*G94 -> 0
C96: Montáž atypických konstrukcí
A97: 2 | B97: Nabídk. cena | C97: ocelových profilů | D97: 43.22.11 | E97: t | F97: 0.07 | H97: =ROUND(F97*G97,0) -> 0
C99: Přesun hmot pro doplňkové konstrukce
A100: 3 | B100: 998 76-7201 | C100: v objektech do 6 m | D100: 43.22.11 | E100: % | F100: =SUM(H93:H99) -> 0 | G100: 0.0137 | H100: =CEILING(PRODUCT(F100,G100),1) -> 0
C102: Doplňkové konstrukce - celkem | H102: =SUM(H93:H101) -> 0
C105: NÁTĚRY
C106: Nátěr doplňkových konstrukcí syntetický
A107: 1 | B107: 783 22-6100 | C107: základní | D107: 43.22.11 | E107: m2 | F107: 1 | H107: =F107*G107 -> 0
A108: 2 | B108: 783 22-5100 | C108: krycí s 1x emailováním | D108: 43.22.11 | E108: m2 | F108: 1 | H108: =F108*G108 -> 0
C110: Nátěry - celkem | H110: =CEILING(SUM(H107:H109),1) -> 0

Sheet EL102_RN
C1: REKAPITULACE
C2: REKONSTRUKCE KLIMATIZACE OBJEKTU Q, větev c1
C4: SO03 Objekt Specializovaných výukových prostor
C5: D1.4.3 Elektroinstalace
B7: Položka | C7: Název | D7: Celkem
B8: =EL102_Slepy_rozpocet!A4 -> 1 | C8: =EL102_Slepy_rozpocet!B4 -> ROZVADĚČE A SKŘÍNKY | D8: =EL102_Slepy_rozpocet!J18 -> 0
B9: =EL102_Slepy_rozpocet!A20 -> 2 | C9: =EL102_Slepy_rozpocet!B20 -> KABELY | D9: =EL102_Slepy_rozpocet!J30 -> 0
B10: =EL102_Slepy_rozpocet!A32 -> 3 | C10: =EL102_Slepy_rozpocet!B32 -> MONTÁŽNÍ MATERIÁL | D10: =EL102_Slepy_rozpocet!J39 -> 0
B11: =EL102_Slepy_rozpocet!A41 -> 4 | C11: =EL102_Slepy_rozpocet!B41 -> DEMONTÁŽE A OPĚTOVNÉ MONTÁŽE | D11: =EL102_Slepy_rozpocet!J46 -> 0
B12: =EL102_Slepy_rozpocet!A48 -> 5 | C12: =EL102_Slepy_rozpocet!B48 -> OSTATNÍ | D12: =EL102_Slepy_rozpocet!J62 -> 0
C13: CELKEM bez DPH | D13: =SUM(D8:D12) -> 0

Sheet EL102_Slepy_rozpocet
A1: Pořadové číslo | B1: Popis položky | C1: Název | D1: Měrná | E1: Množství | F1: Jednotková cena | G1: Jednotková cena | H1: Celková cena | I1: Celková cena | J1: Celková cena
D2: jednotka | F2: dodávky | G2: montáže | H2: dodávky | I2: montáže
A4: 1 | B4: ROZVADĚČE A SKŘÍNKY
B6: V položkách jsou započteny i náklady na případné sestavení dílců dříve demontovaných z důvodů dopravy, a dále usazení, vyvážení, upevnění montáž a zapojení demontovaných přístrojů a víka, kontolru spojů a jejich dotažení
A8: 1.1 | B8: Doplnění stávajícího rozvaděče RH pole 4 | D8: kpt | E8: 1 | H8: =F8*E8 -> 0 | I8: =G8*E8 -> 0 | J8: =H8+I8 -> 0
B9: Jistič B40/3 | D9: ks | E9: 1 | H9: =F9*E9 -> 0 | I9: =G9*E9 -> 0 | J9: =H9+I9 -> 0
B10: Pomocný materiál (spojovací materiál, kabelová oka a kabelové lisovací dutinky, štítky, návlečky na kabely…) | D10: kpt | E10: 1 | H10: 0 | I10: 0 | J10: 0
A12: 1.2 | B12: Úprava stávajícího rozvaděče RM07.1 | D12: kpt | E12: 1 | H12: 0 | I12: 0 | J12: 0
B13: Jistič C32/3 | D13: ks | E13: 1 | H13: 0 | I13: 0 | J13: 0
B14: Jistič C25/3 | D14: ks | E14: 1 | H14: 0 | I14: 0 | J14: 0
B15: Pomocný materiál (spojovací materiál, kabelová oka a kabelové lisovací dutinky, štítky, návlečky na kabely…) | D15: kpt | E15: 1 | H15: 0 | I15: 0 | J15: 0
A18: 1 | B18: ROZVADĚČE A SKŘÍNKY CELKEM | J18: =SUM(J8:J15) -> 0
A20: 2 | B20: KABELY
B22: V položkách jsou započteny i náklady na naznačení trasy vedení, přípravu svitků a bubnů, položení přip. protahování vodičů, šňůr a kabelů, vyrovnání a vytvarování ohybů, zajištění konců proti poškození izolace, označení štítky a vyzkoušení izolačního stavu, spolu s pomocnými montážními pracemi a materiálem, ukončením kabelů na svorkovnici zařízení a v rozvaděči
A24: 2.1 | B24: CYKY-J 4x16 mm² | C24: Kabel | D24: m | E24: 200 | H24: =F24*E24 -> 0 | I24: =G24*E24 -> 0 | J24: =H24+I24 -> 0
A25: 2.2 | B25: CYKY-J 5x6 mm² | C25: Kabel | D25: m | E25: 26 | H25: =F25*E25 -> 0 | I25: =G25*E25 -> 0 | J25: =H25+I25 -> 0
A26: 2.3 | B26: CYY 4 | C26: Kabel | D26: m | E26: 1500 | H26: =F26*E26 -> 0 | I26: =G26*E26 -> 0 | J26: =H26+I26 -> 0
A27: 2.4 | B27: CYY 6 | C27: Kabel | D27: m | E27: 1000 | H27: =F27*E27 -> 0 | I27: =G27*E27 -> 0 | J27: =H27+I27 -> 0
A28: 2.5 | B28: CYY 25 | C28: Kabel | D28: m | E28: 200 | H28: =F28*E28 -> 0 | I28: =G28*E28 -> 0 | J28: =H28+I28 -> 0
A30: 2 | B30: KABELY CELKEM | J30: =SUM(J24:J28) -> 0
A32: 3 | B32: MONTÁŽNÍ MATERIÁL
B34: V položkách jsou započteny i náklady na naznačení trasy vedení, přípravu svitků a bubnů, označení štítky, spolu s pomocnými montážními pracemi a materiálem
A36: 3.1 | B36: Kabelový žlab drátěný, pozinkovaný s víkem 62x50 mm, včetně nosných konstrukcí a spojovacích dílů | C36: Montážní materiál | D36: m | E36: 156 | H36: =F36*E36 -> 0 | I36: =G36*E36 -> 0 | J36: =H36+I36 -> 0
A37: 3.2 | B37: Zapravení stavebních otvorů po protažení kabelů | C37: Montážní materiál | D37: kpt | E37: 1 | H37: =F37*E37 -> 0 | I37: =G37*E37 -> 0 | J37: =H37+I37 -> 0
A39: 3 | B39: MONTÁŽNÍ MATERIÁL CELKEM | J39: =SUM(J36:J37) -> 0
A41: 4 | B41: DEMONTÁŽE A OPĚTOVNÉ MONTÁŽE
A43: 4.1 | B43: Demontáž a opětovná montáž svítidel, reproduktorů, WiFi routerů a požárních hlásičů v místnosti č. 1.20 v polích s demontovanými podhledy | C43: Demontáže a opětovné montáže | D43: kpt | E43: 1 | H43: =F43*E43 -> 0 | I43: =G43*E43 -> 0 | J43: =H43+I43 -> 0
A44: 4.2 | B44: Demontáž a opětovná montáž 3ks svítidel a požárního hlásiče v místnosti č. 1.38, kde bude plný pohled vyměněn za pohled rastrový | C44: Demontáže a opětovné montáže | D44: kpt | E44: 1 | H44: =F44*E44 -> 0 | I44: =G44*E44 -> 0 | J44: =H44+I44 -> 0
A46: 4 | B46: ZAŘÍZENÍ CELKEM | J46: =SUM(J43:J44) -> 0
A48: 5 | B48: OSTATNÍ
A50: 5.1 | B50: Informační systém - štítky | C50: Ostatní | D50: kpl. | E50: 1 | H50: =F50*E50 -> 0 | I50: =G50*E50 -> 0 | J50: =H50+I50 -> 0
A51: 5.2 | B51: Zaškolení obsluhy, včetně předání katalogových listů a montážních návodů | C51: Ostatní | D51: hod | E51: 8 | H51: 0 | I51: 0 | J51: 0
A52: 5.3 | B52: Revize el. zařízení vč. revizní zprávy a ujištění o prohlášení o shodě dodaných komponentů | C52: Ostatní | D52: hod | E52: 24 | H52: 0 | I52: 0 | J52: 0
A53: 5.4 | B53: Koordinace se správcem budovy - za účelem odpojení budovy od el. energie | C53: Ostatní | D53: hod | E53: 8 | H53: 0 | I53: 0 | J53: 0
A54: 5.5 | B54: Koordinace se servisním technikem profese EPS - z důvodu revize zařízení, za účelem správného fungování po opětovné montáži požárních hlásičů | C54: Ostatní | D54: hod | E54: 24 | H54: 0 | I54: 0 | J54: 0
A55: 5.6 | B55: Koordinace se servisním technikem profese slaboproudu - důvodu revize zařízení, za účelem správného fungování po opětovné montáži reproduktorů a WiFi routerů | C55: Ostatní | D55: hod | E55: 16 | H55: 0 | I55: 0 | J55: 0
A56: 5.7 | B56: Koordinace se servisním technikem profese silnoproudu - důvodu revize zařízení, za účelem správného fungování po opětovné montáži svítidel | C56: Ostatní | D56: hod | E56: 16 | H56: 0 | I56: 0 | J56: 0
A57: 5.8 | B57: Protipožární ucpávka | C57: Ostatní | D57: kpt | E57: 1 | H57: 0 | I57: 0 | J57: 0
A58: 5.9 | B58: Dílenská dokumentace | C58: Ostatní | D58: kpt | E58: 1 | H58: 0 | I58: 0 | J58: 0
A59: 5.10 | B59: Dodavatelská dokumentace | C59: Ostatní | D59: kpt | E59: 1 | H59: 0 | I59: 0 | J59: 0
A60: 5.11 | B60: Dokumentace skutečného provedení stavby | C60: Ostatní | D60: kpt | E60: 1 | H60: 0 | I60: 0 | J60: 0
A62: 5 | B62: OSTATNÍ CELKEM | J62: =SUM(J50:J60) -> 0
B64: CELKEM | J64: =SUM(J46,J62,J39,J30,J18) -> 0
B67: Jiné materiály, montáž, atd., neuvedené výše, ale které je nutné zahrnout do celkového rozsahu prací podle výkresů a praxe dodavatele. Prosím, uveďte podrobný technický popis a cenovou kalkulaci.

Sheet SR102_RN
C1: REKAPITULACE
C2: REKONSTRUKCE KLIMATIZACE OBJEKTU Q, větev c1
C4: SO03 Objekt Specializovaných výukových prostor
C5: D1.4.4 Měření a regulace
B7: Položka | C7: Název | D7: Celkem
B8: 1 | C8: ŘÍDICÍ STANICE | D8: =SR102_Slepy_rozpocet!J21 -> 0
B9: 2 | C9: ROZVADĚČE A SKŘÍŇKY | D9: =SR102_Slepy_rozpocet!J30 -> 0
B10: 3 | C10: KABELY | D10: =SR102_Slepy_rozpocet!J45 -> 0
B11: 4 | C11: MONTÁŽNÍ MATERIÁL | D11: =SR102_Slepy_rozpocet!J58 -> 0
B12: 5 | C12: POLNÍ INSTRUMENTACE | D12: =SR102_Slepy_rozpocet!J70 -> 0
B13: 6 | C13: SOFTWARE A PRACOVNÍ STANICE | D13: =SR102_Slepy_rozpocet!J82 -> 0
B14: 7 | C14: OSTATNÍ | D14: =SR102_Slepy_rozpocet!J100 -> 0
C15: CELKEM bez DPH | D15: =SUM(D8:D14) -> 0

Sheet SR102_Slepy_rozpocet
A1: Pořadové číslo | B1: Popis položky | C1: Název | D1: Měrná | E1: Množství | F1: Jednotková cena | G1: Jednotková cena | H1: Celková cena | I1: Celková cena | J1: Celková cena
D2: jednotka | F2: dodávky | G2: montáže | H2: dodávky | I2: montáže
B4: Nově dodaný řídicí systém musí být kompatibilní se stávajícím systémem vybudovaným v rámci MZLU Objektu Q. Nově dodaný řídicí systém bude zaintegrován do stávající vizualizace MZLU ve které budou doplněny nové obrazovky. Je nepřípustné dodávat novou licenci vizualizačního software a vytvářet samostatnou vizualizaci nové technologie!
A6: 1 | B6: ŘÍDICÍ STANICE
B8: Rozvaděč RM02.3
B9: AI 45; DI 12; AO 7; DO 19
A10: 1.1 | B10: Eagle - univerzální regulátor podporující standardy BACnet IP, BACnet MS/TP, LonWorks, Panel-Bus, Meter-Bus, ModBus, 600 I/O, webserver (integrované 10UI, 4AO, 4DI, 8DO), výstup pro displej | C10: Univerzální regulátor, např.: CLEA2026B31 | D10: ks | E10: 1 | H10: =F10*E10 -> 0 | I10: =G10*E10 -> 0 | J10: =H10+I10 -> 0
A11: 1.2 | B11: Digitální vstupní modul (XF823A) - 12 DI (Panel Bus) | C11: Rozšiřující modul, např.: CLIOP823 | D11: ks | E11: 1 | H11: 0 | I11: 0 | J11: 0
A12: 1.3 | B12: Svorkovnicový modul pro digitální vstupní moduly (obsahující svorkovnici, propojku modulů a popisovací štítek) | C12: Svorkovnicový modul, např.: XS823 | D12: ks | E12: 1 | H12: 0 | I12: 0 | J12: 0
A13: 1.4 | B13: Digitální výstupní modul (XF824A) - 6 DO (Panel Bus) | C13: Rozšiřující modul, např.: CLIOP824A | D13: ks | E13: 2 | H13: 0 | I13: 0 | J13: 0
A14: 1.5 | B14: Svorkovnicový modul pro reléové a 3-polohové moduly (obsahující svorkovnici, propojku modulů a popisovací štítek) | C14: Svorkovnicový modul, např.: XS824-25 | D14: ks | E14: 2 | H14: 0 | I14: 0 | J14: 0
A15: 1.6 | B15: Analogový vstupní modul (XF821A) - 8 AI (Panel Bus) | C15: Rozšiřující modul, např.: CLIOP821A | D15: ks | E15: 5 | H15: 0 | I15: 0 | J15: 0
A16: 1.7 | B16: Analogový výstupní modul (XF822A) - 8 AO (Panel Bus) | C16: Rozšiřující modul, např.: CLIOP822A | D16: ks | E16: 1 | H16: 0 | I16: 0 | J16: 0
A17: 1.8 | B17: Svorkovnicový modul pro analogové vstupně / výstupní moduly (obsahující svorkovnici, propojku modulů a popisovací štítek) | C17: Svorkovnicový modul, např.: XS821-22 | D17: ks | E17: 6 | H17: 0 | I17: 0 | J17: 0
A18: 1.9 | B18: HMI panel s dotykovým displejem, 10.1" LCD TFT display, LED podsvícení, rozlišení 1024x600, 1x Ethernet, 3x sériový porst RS232/485, 1x USB host, IP65, 24V | C18: HMI panel | D18: ks | E18: 1 | H18: 0 | I18: 0 | J18: 0
A19: 1.10 | B19: Ethernetový switch 5port na DIN lištu | C19: Ethernetový switch | D19: ks | E19: 1 | H19: 0 | I19: 0 | J19: 0
A21: 1 | B21: ŘÍDICÍ STANICE CELKEM | J21: =SUM(J10:J19) -> 0
A23: 2 | B23: ROZVADĚČE A SKŘÍNKY
B25: V položkách jsou započteny i náklady na případné sestavení dílců dříve demontovaných z důvodů dopravy, a dále usazení, vyvážení, upevnění montáž a zapojení demontovaných přístrojů a víka, kontolru spojů a jejich dotažení
A27: 2.1 | B27: Rozvaděč RM02.3 | D27: ks | E27: 1 | H27: =F27*E27 -> 0 | I27: =G27*E27 -> 0 | J27: =H27+I27 -> 0
B28: Rozvaděč bude tvořen oceloplechovou skříní o rozměrech 2000x1000x400 (v x š x h), IP54/20 s kapsou na dokumentaci. Rozvaděč bude umístěn na soklu 100mm. Rozvaděč bude vyzbrojen hlavním vypínačem, zdrojem 230VAC/24VDC, transformátorem 230VAC/24VAC, jisticími obvody zdroje, jistícími a ovládacími vývody pro pohony regulačních ventilů, jistícími a ovládacími obvody, přepěťovou ochranou typu 3, ovládacími a signalizačními prvky a operátorským panelem na panelu rozvaděče, svorkovnicemi pro připojení pohonů, polní instrumentace. Dále bude obsahovat řídící systém dle požadované konfigurace vstupů a výstupů, komunikačních rozhraní. Přívody a vývody budou provedeny shora přes kabelové vývodky. Rozvaděč bude vybaven dle potřeby napájených zařízení viz Tabulka strojů a zařízení.
A30: 2 | B30: ROZVADĚČE A SKŘÍNKY CELKEM | J30: =SUM(J27:J29) -> 0
A32: 3 | B32: KABELY
B34: V položkách jsou započteny i náklady na naznačení trasy vedení, přípravu svitků a bubnů, položení přip. protahování vodičů, šňůr a kabelů, vyrovnání a vytvarování ohybů, zajištění konců proti poškození izolace, označení štítky a vyzkoušení izolačního stavu, spolu s pomocnými montážními pracemi a materiálem, ukončením kabelů na svorkovnici zařízení a v rozvaděči
A36: 3.1 | B36: CYKY-J 3x1,5 | C36: Kabel | D36: m | E36: 631 | H36: =F36*E36 -> 0 | I36: =G36*E36 -> 0 | J36: =H36+I36 -> 0
A37: 3.2 | B37: CYKY-J 3x2,5 | C37: Kabel | D37: m | E37: 679 | H37: 0 | I37: 0 | J37: 0
A38: 3.3 | B38: CYKY-O 4x1,5 | C38: Kabel | D38: m | E38: 1409 | H38: 0 | I38: 0 | J38: 0
A39: 3.4 | B39: JYTY-O 2x1 | C39: Kabel | D39: m | E39: 4778 | H39: 0 | I39: 0 | J39: 0
A40: 3.5 | B40: JYTY-O 4x1 | C40: Kabel | D40: m | E40: 731 | H40: 0 | I40: 0 | J40: 0
A41: 3.6 | B41: JYTY-O 7x1 | C41: Kabel | D41: m | E41: 91 | H41: 0 | I41: 0 | J41: 0
A42: 3.7 | B42: J-Y(st)Y 2x2x0,8 | C42: Kabel | D42: m | E42: 144 | H42: 0 | I42: 0 | J42: 0
A43: 3.8 | B43: FTP 4p, Cat 6 | C43: Kabel | D43: m | E43: 24 | H43: 0 | I43: 0 | J43: 0
A45: 3 | B45: KABELY CELKEM | J45: =SUM(J36:J44) -> 0
A47: 4 | B47: MONTÁŽNÍ MATERIÁL
B49: V položkách jsou započteny i náklady na naznačení trasy vedení, přípravu svitků a bubnů, označení štítky, spolu s pomocnými montážními pracemi a materiálem
A51: 4.1 | B51: Kabelový žlab, pozinkovaný s víkem 125x50 mm, včetně nosných konstrukcí a spojovacích dílů, dělící přepážka | C51: Kabelový žlab | D51: m | E51: 115 | H51: =F51*E51 -> 0 | I51: =G51*E51 -> 0 | J51: =H51+I51 -> 0
A52: 4.2 | B52: Kabelový žlab, pozinkovaný s víkem 62x50 mm, včetně nosných konstrukcí a spojovacích dílů, dělící přepážka | C52: Kabelový žlab | D52: m | E52: 59 | H52: 0 | I52: 0 | J52: 0
A53: 4.3 | B53: Trubka instalační plastová ohebná průměr 25mm, včetně upevňovacího a instalačního materiálu | C53: Instalační trubka | D53: m | E53: 150 | H53: 0 | I53: 0 | J53: 0
A54: 4.4 | B54: Trubka instalační plastová pevná průměr 25mm, včetně upevňovacího a montážního materiálu | C54: Instalační trubka | D54: m | E54: 300 | H54: 0 | I54: 0 | J54: 0
A55: 4.5 | B55: Lišta elektroinstalační hranatá 40x20mm, včetně upevňovacího a montážního materiálu | C55: Instalační lišta | D55: m | E55: 200 | H55: 0 | I55: 0 | J55: 0
A56: 4.6 | B56: Kabelová krabicová rozvodka 88x88x53 mm (šxvxh),skříň s předlisy, 5x svorka 1,5-2,5mm2, povrch stěny lze použít pro kabelové vývodky max. M 20, pro chráněné instalace, IP 65, RAL 7035, Materiál - termoplast | C56: Instalační materiál | D56: ks | E56: 20 | H56: 0 | I56: 0 | J56: 0
A58: 4 | B58: MONTÁŽNÍ MATERIÁL CELKEM | J58: =SUM(J51:J56) -> 0
A60: 5 | B60: POLNÍ INSTRUMENTACE
A62: 5.1 | B62: Odporový snímač teploty, prostorový plastový, 0÷60°C, Ni1000/6180, včetně držáku na zeď | C62: Polní instumentace | D62: ks | E62: 16 | H62: =F62*E62 -> 0 | I62: =G62*E62 -> 0 | J62: =H62+I62 -> 0
A63: 5.2 | B63: Odporový snímač teploty, se stonkem a s plastovou hlavicí , délka stonku 120 mm, rozsah -30÷60°C, Ni 1000/6180, včetně kovového držáku 100mm | C63: Polní instumentace | D63: ks | E63: 2 | H63: 0 | I63: 0 | J63: 0
A64: 5.3 | B64: Odporový snímač teploty, se stonkem a s plastovou hlavicí , délka stonku 240 mm, rozsah -30÷60°C, Ni 1000/6180, včetně kovového držáku 220mm | C64: Polní instumentace | D64: ks | E64: 25 | H64: 0 | I64: 0 | J64: 0
A65: 5.4 | B65: Diferenční tlakový spínač, 20÷300 Pa, s připojovací sadou, se stupnicí v Pa, s držákem snímače, s hadičkami a plastovými konektory na VZT kanál | C65: Polní instumentace | D65: ks | E65: 1 | H65: 0 | I65: 0 | J65: 0
A66: 5.5 | B66: Klapkový pohon, krouticí moment 5 Nm, napajení 230 VAC, řízení otevřít/zavřít, příkon 4 VA, kabel 1 m 3x0,75 mm | C66: Polní instumentace | D66: ks | E66: 13 | H66: 0 | I66: 0 | J66: 0
A67: 5.6 | B67: Klapkový pohon, krouticí moment 5 Nm, napajení 24 V AC/DC, řízení 0-10V, příkon 2 VA, kabel 1 m 4x0,75 mm, zpětné hlášení polohy | C67: Polní instumentace | D67: ks | E67: 2 | H67: 0 | I67: 0 | J67: 0
A68: 5.7 | B68: Magnetický okenní kontakt, materiál hliník, k nalepení nebo našroubování, 0,5A/100V, včetně připojovacího kabelu a propojovací krabice, svorek, lisování nebo pájení na kabel J-Y(st)Y 2x2x0,8 mm | C68: Polní instumentace | D68: ks | E68: 7 | H68: 0 | I68: 0 | J68: 0
A70: 5 | B70: POLNÍ INSTRUMENTACE CELKEM | J70: =SUM(J62:J68) -> 0
A72: 6 | B72: SOFTWARE
A74: 6.1 | B74: Zpracování SW - uživatelský SW pro programovatelné podstanice +RM02.3 | C74: Software | D74: d.b. | E74: 83 | H74: =F74*E74 -> 0 | I74: =G74*E74 -> 0 | J74: =H74+I74 -> 0
A75: 6.2 | B75: Zpracování SW - vizualizace pro programovatelné podstanice +RM02.3 | C75: Software | D75: d.b. | E75: 83 | H75: =F75*E75 -> 0 | I75: =G75*E75 -> 0 | J75: =H75+I75 -> 0
A77: 6.3 | B77: Úprava stávajícího SW o nové kazetové jednotky - uživatelský SW pro programovatelné podstanice +RM01.4 | C77: Software | D77: ks | E77: 1 | H77: =F77*E77 -> 0 | I77: =G77*E77 -> 0 | J77: =H77+I77 -> 0
A78: 6.4 | B78: Úprava stávajícího SW o nové kazetové jednotky - vizualizace pro programovatelné podstanice +RM01.4 | C78: Software | D78: ks | E78: 1 | H78: =F78*E78 -> 0 | I78: =G78*E78 -> 0 | J78: =H78+I78 -> 0
A80: 6.5 | B80: Rozšíření stávající licence vizualizace | C80: Rozšíření stávající licence vizualizace | D80: ks | E80: 1 | H80: =F80*E80 -> 0 | I80: =G80*E80 -> 0 | J80: =H80+I80 -> 0
A82: 6 | B82: SOFTWARE CELKEM | J82: =SUM(J74:J80) -> 0
A84: 7 | B84: OSTATNÍ
A86: 7.1 | B86: Informační systém - štítky | C86: Ostatní | D86: kpt | E86: 1 | H86: =F86*E86 -> 0 | I86: =G86*E86 -> 0 | J86: =H86+I86 -> 0
A87: 7.2 | B87: Přípravu odboček pro nové rozvaděče MaR, ze stávající komunikace C-BUS | C87: Ostatní | D87: ks | E87: 1 | H87: 0 | I87: 0 | J87: 0
A88: 7.3 | B88: Oživení a zprovoznění systému, zaregulování systému, požadované funkční zkoušky, nastavení parametrů regulovaných okruhů po vyhodnocení zkušebního provozu | C88: Ostatní | D88: hod | E88: 32 | H88: 0 | I88: 0 | J88: 0
A89: 7.4 | B89: Parametrizace polní instrumentace, požadované funkční zkoušky | C89: Ostatní | D89: kpt | E89: 10 | H89: 0 | I89: 0 | J89: 0
A90: 7.5 | B90: Zkoušky a prohlídky elektrických rozvodů a zařízení, celková prohlídka a vyhotovení revizní zprávy pro objem montážních prací | C90: Ostatní | D90: hod | E90: 18 | H90: 0 | I90: 0 | J90: 0
A91: 7.6 | B91: Inženýrská činnost | C91: Ostatní | D91: hod | E91: 12 | H91: 0 | I91: 0 | J91: 0
A92: 7.7 | B92: Koordinace s ostatními profesemi | C92: Ostatní | D92: hod | E92: 18 | H92: 0 | I92: 0 | J92: 0
A93: 7.8 | B93: Protipožární ucpávka | C93: Ostatní | D93: kpt | E93: 1 | H93: 0 | I93: 0 | J93: 0
A94: 7.9 | B94: Zaškolení obsluhy, včetně předání katalogových listů a montážních návodů | C94: Ostatní | D94: hod | E94: 6 | H94: 0 | I94: 0 | J94: 0
A95: 7.10 | B95: Zkoušky komunikace | C95: Ostatní | D95: hod | E95: 12 | H95: 0 | I95: 0 | J95: 0
A96: 7.11 | B96: Dílenská dokumentace | C96: Ostatní | D96: kpt | E96: 1 | H96: 0 | I96: 0 | J96: 0
A97: 7.12 | B97: Dodavatelská dokumentace | C97: Ostatní | D97: kpt | E97: 1 | H97: 0 | I97: 0 | J97: 0
A98: 7.13 | B98: Dokumentace skutečného provedení stavby | C98: Ostatní | D98: kpt | E98: 1 | H98: 0 | I98: 0 | J98: 0
A100: 7 | B100: OSTATNÍ CELKEM | J100: =SUM(J86:J99) -> 0
B102: CELKEM | J102: =J21+J30+J45+J58+J70+J82+J100 -> 0
B104: Jiné materiály, montáž, atd., neuvedené výše, ale které je nutné zahrnout do celkového rozsahu prací podle výkresů a praxe dodavatele. Prosím, uveďte podrobný technický popis a cenovou kalkulaci.

Sheet List1
